Workbook

Sheet 画面表示

Sheet Status
A1: Status | J1: 初期値
B2: 1 | C2: 現在の頁 | G2: Page_Now | H2: 1 | J2: 1
B3: 2 | C3: 直前の頁 | G3: Page_Before | H3: =Page_Now -> 1 | J3: =Page_Now -> 1
C4: 入力１ | D4: 保険期間開始年 | G4: HokenStartY
G5: StartY
D6: 基準収入金額 | G6: KijunShunyu
D7: 補てん方式 | G7: HotenHoshiki
D8: 保険方式 | E8: 補償限度 | F8: ９０％ | G8: Hoken_HoshoGendo90 | H8: FALSE | J8: FALSE
F9: ８８％ | G9: Hoken_HoshoGendo88 | H9: FALSE | J9: FALSE
F10: ８５％ | G10: Hoken_HoshoGendo85 | H10: FALSE | J10: FALSE
F11: ８３％ | G11: Hoken_HoshoGendo83 | H11: FALSE | J11: FALSE
F12: ８０％ | G12: Hoken_HoshoGendo80 | H12: TRUE | J12: TRUE
F13: ７８％ | G13: Hoken_HoshoGendo78 | H13: FALSE | J13: FALSE
F14: ７５％ | G14: Hoken_HoshoGendo75 | H14: FALSE | J14: FALSE
F15: ７０％ | G15: Hoken_HoshoGendo70 | H15: FALSE | J15: FALSE
F16: ６５％ | G16: Hoken_HoshoGendo65 | H16: FALSE | J16: FALSE
F17: ６０％ | G17: Hoken_HoshoGendo60 | H17: FALSE | J17: FALSE
F18: ５５％ | G18: Hoken_HoshoGendo55 | H18: FALSE | J18: FALSE
F19: ５０％ | G19: Hoken_HoshoGendo50 | H19: FALSE | J19: FALSE
F20: 適用 | G20: Hoken_HoshoGendo | H20: 80 | J20: 80
E21: 補償の下限 | F21: ７０％ | G21: Hoken_HoshoKagen70 | H21: FALSE | J21: FALSE
F22: ６０％ | G22: Hoken_HoshoKagen60 | H22: FALSE | J22: FALSE
F23: ５０％ | G23: Hoken_HoshoKagen50 | H23: FALSE | J23: FALSE
F24: 選択なし | G24: Hoken_HoshoKagen00 | H24: TRUE | J24: TRUE
F25: 適用 | G25: Hoken_HoshoKagen | H25: 0 | J25: 0
E26: 支払率 | F26: ９０％ | G26: Hoken_Shiharairitsu90 | H26: TRUE | J26: TRUE
F27: ８０％ | G27: Hoken_Shiharairitsu80 | H27: FALSE | J27: FALSE
F28: ７０％ | G28: Hoken_Shiharairitsu70 | H28: FALSE | J28: FALSE
F29: ６０％ | G29: Hoken_Shiharairitsu60 | H29: FALSE | J29: FALSE
F30: ５０％ | G30: Hoken_Shiharairitsu50 | H30: FALSE | J30: FALSE
F31: 適用 | G31: Hoken_Shiharairitsu | H31: 90 | J31: 90
D32: 積立方式 | E32: 補償幅 | F32: １０％ | G32: Tsumitate_HoshoHaba10 | H32: TRUE | J32: TRUE
F33: ５％ | G33: Tsumitate_HoshoHaba5 | H33: FALSE | J33: FALSE
F34: 適用 | G34: Tsumitate_HoshoHaba | H34: 10 | J34: 10
E35: 支払率 | F35: ９０％ | G35: Tsumitate_Shiharairitsu90 | H35: TRUE | J35: TRUE
F36: ８０％ | G36: Tsumitate_Shiharairitsu80 | H36: FALSE | J36: FALSE
F37: ７０％ | G37: Tsumitate_Shiharairitsu70 | H37: FALSE | J37: FALSE
F38: ６０％ | G38: Tsumitate_Shiharairitsu60 | H38: FALSE | J38: FALSE
F39: ５０％ | G39: Tsumitate_Shiharairitsu50 | H39: FALSE | J39: FALSE
F40: ４０％ | G40: Tsumitate_Shiharairitsu40 | H40: FALSE | J40: FALSE
F41: ３０％ | G41: Tsumitate_Shiharairitsu30 | H41: FALSE | J41: FALSE
F42: ２０％ | G42: Tsumitate_Shiharairitsu20 | H42: FALSE | J42: FALSE
F43: １０％ | G43: Tsumitate_Shiharairitsu10 | H43: FALSE | J43: FALSE
F44: 適用 | G44: Tsumitate_Shiharairitsu | H44: 90 | J44: 90
D45: 危険段階区分 | G45: KikenDankaiKubun | H45: 0区分 | J45: 0区分
F46: 適用 | G46: KikenDankai
E47: 激変緩和措置適用 | G47: GekihenKanwaSochiTekiyo | H47: 激変緩和措置適用なし | J47: 激変緩和措置適用なし
D48: つなぎ資金貸付残高 | G48: TsunagiZandaka
D49: 加重平均損害率算定 基礎数値 | F49: ① | G49: KajuHeikinSongairitsuKiso1
F50: ② | G50: KajuHeikinSongairitsuKiso2
F51: ③ | G51: KajuHeikinSongairitsuKiso3
D52: 見込農業収入対象品目数 | G52: MikomiNogyoTaishoHinmoku | I52: =TRIM(SUBSTITUTE(MikomiNogyoTaishoHinmoku,"品目",""))*1 -> 
G53: MikomiNogyoTaishoHinmokuNum
C54: 入力２ | D54: 種類・品目 | F54: 明細０１ | G54: ShuruiHinmoku1
F55: 明細０２ | G55: ShuruiHinmoku2
F56: 明細０３ | G56: ShuruiHinmoku3
F57: 明細０４ | G57: ShuruiHinmoku4
F58: 明細０５ | G58: ShuruiHinmoku5
F59: 明細０６ | G59: ShuruiHinmoku6
F60: 明細０７ | G60: ShuruiHinmoku7
F61: 明細０８ | G61: ShuruiHinmoku8
F62: 明細０９ | G62: ShuruiHinmoku9
F63: 明細１０ | G63: ShuruiHinmoku10
D64: 期首棚卸高 | F64: 明細０１ | G64: KishuTanaoroshi1
F65: 明細０２ | G65: KishuTanaoroshi2
F66: 明細０３ | G66: KishuTanaoroshi3
F67: 明細０４ | G67: KishuTanaoroshi4
F68: 明細０５ | G68: KishuTanaoroshi5
F69: 明細０６ | G69: KishuTanaoroshi6
F70: 明細０７ | G70: KishuTanaoroshi7
F71: 明細０８ | G71: KishuTanaoroshi8
F72: 明細０９ | G72: KishuTanaoroshi9
F73: 明細１０ | G73: KishuTanaoroshi10
F74: 合計 | G74: KishuTanaoroshi11
D75: 事業消費単価 | F75: 明細０１ | G75: JigyoShohi1
F76: 明細０２ | G76: JigyoShohi2
F77: 明細０３ | G77: JigyoShohi3
F78: 明細０４ | G78: JigyoShohi4
F79: 明細０５ | G79: JigyoShohi5
F80: 明細０６ | G80: JigyoShohi6
F81: 明細０７ | G81: JigyoShohi7
F82: 明細０８ | G82: JigyoShohi8
F83: 明細０９ | G83: JigyoShohi9
F84: 明細１０ | G84: JigyoShohi10
D85: 期末棚卸単価 | F85: 明細０１ | G85: KimatsuTanaoroshi1
F86: 明細０２ | G86: KimatsuTanaoroshi2
F87: 明細０３ | G87: KimatsuTanaoroshi3
F88: 明細０４ | G88: KimatsuTanaoroshi4
F89: 明細０５ | G89: KimatsuTanaoroshi5
F90: 明細０６ | G90: KimatsuTanaoroshi6
F91: 明細０７ | G91: KimatsuTanaoroshi7
F92: 明細０８ | G92: KimatsuTanaoroshi8
F93: 明細０９ | G93: KimatsuTanaoroshi9
F94: 明細１０ | G94: KimatsuTanaoroshi10
D95: 見込農業収入金額 | F95: 明細０１ | G95: MikomiNogyoShunyu1
F96: 明細０２ | G96: MikomiNogyoShunyu2
F97: 明細０３ | G97: MikomiNogyoShunyu3
F98: 明細０４ | G98: MikomiNogyoShunyu4
F99: 明細０５ | G99: MikomiNogyoShunyu5
F100: 明細０６ | G100: MikomiNogyoShunyu6
F101: 明細０７ | G101: MikomiNogyoShunyu7
F102: 明細０８ | G102: MikomiNogyoShunyu8
F103: 明細０９ | G103: MikomiNogyoShunyu9
F104: 明細１０ | G104: MikomiNogyoShunyu10
F105: 合計 | G105: MikomiNogyoShunyu11
C106: 入力３ | D106: 種類・品目 | F106: 明細０１ | G106: ShuruiHinmoku1
F107: 明細０２ | G107: ShuruiHinmoku2
F108: 明細０３ | G108: ShuruiHinmoku3
F109: 明細０４ | G109: ShuruiHinmoku4
F110: 明細０５ | G110: ShuruiHinmoku5
F111: 明細０６ | G111: ShuruiHinmoku6
F112: 明細０７ | G112: ShuruiHinmoku7
F113: 明細０８ | G113: ShuruiHinmoku8
F114: 明細０９ | G114: ShuruiHinmoku9
F115: 明細１０ | G115: ShuruiHinmoku10
D116: 数量払 | F116: 明細０１ | G116: Suryobarai1
F117: 明細０２ | G117: Suryobarai2
F118: 明細０３ | G118: Suryobarai3
F119: 明細０４ | G119: Suryobarai4
F120: 明細０５ | G120: Suryobarai5
F121: 明細０６ | G121: Suryobarai6
F122: 明細０７ | G122: Suryobarai7
F123: 明細０８ | G123: Suryobarai8
F124: 明細０９ | G124: Suryobarai9
F125: 明細１０ | G125: Suryobarai10
F126: 合計 | G126: Suryobarai11
D127: 面積払 | F127: 明細０１ | G127: MensekiBarai1
F128: 明細０２ | G128: MensekiBarai2
F129: 明細０３ | G129: MensekiBarai3
F130: 明細０４ | G130: MensekiBarai4
F131: 明細０５ | G131: MensekiBarai5
F132: 明細０６ | G132: MensekiBarai6
F133: 明細０７ | G133: MensekiBarai7
F134: 明細０８ | G134: MensekiBarai8
F135: 明細０９ | G135: MensekiBarai9
F136: 明細１０ | G136: MensekiBarai10
F137: 合計 | G137: MensekiBarai11
C138: 入力４ | D138: 経営形態 | G138: KeieiKeitaiKojin | H138: TRUE | J138: TRUE
G139: KeieiKeitaiHojin | H139: FALSE | J139: FALSE
D140: 種類・品目 | F140: 明細０１ | G140: ShuruiHinmoku1
F141: 明細０２ | G141: ShuruiHinmoku2
F142: 明細０３ | G142: ShuruiHinmoku3
F143: 明細０４ | G143: ShuruiHinmoku4
F144: 明細０５ | G144: ShuruiHinmoku5
F145: 明細０６ | G145: ShuruiHinmoku6
F146: 明細０７ | G146: ShuruiHinmoku7
F147: 明細０８ | G147: ShuruiHinmoku8
F148: 明細０９ | G148: ShuruiHinmoku9
F149: 明細１０ | G149: ShuruiHinmoku10
D150: 青色申告区分 | F150: 明細０１ | G150: AoiroShinkokuKubun1
F151: 明細０２ | G151: AoiroShinkokuKubun2
F152: 明細０３ | G152: AoiroShinkokuKubun3
F153: 明細０４ | G153: AoiroShinkokuKubun4
F154: 明細０５ | G154: AoiroShinkokuKubun5
F155: 明細０６ | G155: AoiroShinkokuKubun6
F156: 明細０７ | G156: AoiroShinkokuKubun7
F157: 明細０８ | G157: AoiroShinkokuKubun8
F158: 明細０９ | G158: AoiroShinkokuKubun9
F159: 明細１０ | G159: AoiroShinkokuKubun10
D160: 青色申告販売金額 | F160: 明細０１ | G160: AoiroShinkokuHanbaiKingaku1
F161: 明細０２ | G161: AoiroShinkokuHanbaiKingaku2
F162: 明細０３ | G162: AoiroShinkokuHanbaiKingaku3
F163: 明細０４ | G163: AoiroShinkokuHanbaiKingaku4
F164: 明細０５ | G164: AoiroShinkokuHanbaiKingaku5
F165: 明細０６ | G165: AoiroShinkokuHanbaiKingaku6
F166: 明細０７ | G166: AoiroShinkokuHanbaiKingaku7
F167: 明細０８ | G167: AoiroShinkokuHanbaiKingaku8
F168: 明細０９ | G168: AoiroShinkokuHanbaiKingaku9
F169: 明細１０ | G169: AoiroShinkokuHanbaiKingaku10
F170: 合計 | G170: AoiroShinkokuHanbaiKingaku11
D171: 販売金額 | F171: 明細０１ | G171: HanbaiKingaku1
F172: 明細０２ | G172: HanbaiKingaku2
F173: 明細０３ | G173: HanbaiKingaku3
F174: 明細０４ | G174: HanbaiKingaku4
F175: 明細０５ | G175: HanbaiKingaku5
F176: 明細０６ | G176: HanbaiKingaku6
F177: 明細０７ | G177: HanbaiKingaku7
F178: 明細０８ | G178: HanbaiKingaku8
F179: 明細０９ | G179: HanbaiKingaku9
F180: 明細１０ | G180: HanbaiKingaku10
F181: 合計 | G181: HanbaiKingaku11
D182: 除外するもの | F182: 明細０１ | G182: HanbaiKingakuJogai1
F183: 明細０２ | G183: HanbaiKingakuJogai2
F184: 明細０３ | G184: HanbaiKingakuJogai3
F185: 明細０４ | G185: HanbaiKingakuJogai4
F186: 明細０５ | G186: HanbaiKingakuJogai5
F187: 明細０６ | G187: HanbaiKingakuJogai6
F188: 明細０７ | G188: HanbaiKingakuJogai7
F189: 明細０８ | G189: HanbaiKingakuJogai8
F190: 明細０９ | G190: HanbaiKingakuJogai9
F191: 明細１０ | G191: HanbaiKingakuJogai10
F192: 合計 | G192: HanbaiKingakuJogai11
D193: 雑収入_数量払 | F193: 明細０１ | G193: ZatsushunyuHanbaiSuryo1
F194: 明細０２ | G194: ZatsushunyuHanbaiSuryo2
F195: 明細０３ | G195: ZatsushunyuHanbaiSuryo3
F196: 明細０４ | G196: ZatsushunyuHanbaiSuryo4
F197: 明細０５ | G197: ZatsushunyuHanbaiSuryo5
F198: 明細０６ | G198: ZatsushunyuHanbaiSuryo6
F199: 明細０７ | G199: ZatsushunyuHanbaiSuryo7
F200: 明細０８ | G200: ZatsushunyuHanbaiSuryo8
... 170 more rows

Sheet Set
A1: No | B1: Page | C1: Style | D1: Object | E1: Cell | F1: Group | G1: GroupA | H1: GroupB | I1: InitialVisible | J1: Visible01 | K1: Visible02 | L1: RestartFLG
A2: 1 | B2: 3 | C2: Label | D2: Lbl3_HokenStartY | E2: HokenStartY | I2: TRUE | J2: H31-Hoken
A3: =A2+1 -> 2 | B3: 3 | C3: Combo | D3: CBx3_HokenStartY | E3: HokenStartY | H3: 3 | I3: TRUE | J3: H31-Hoken | L3: 3
A4: =A3+1 -> 3 | B4: 3 | C4: Label | D4: Lbl3_KijunShunyu | E4: KijunShunyu | I4: TRUE | J4: H31-Hoken
A5: 4 | B5: 3 | C5: Text | D5: TBx3_KijunShunyu | E5: KijunShunyu | H5: 3 | I5: TRUE | J5: H31-Hoken | K5: #,##0 | L5: 3
A6: 5 | B6: 3 | C6: Label | D6: Lbl3_HotenHoshiki | E6: HotenHoshiki | I6: TRUE | J6: H31-Hoken
A7: 6 | B7: 3 | C7: Combo | D7: CBx3_HotenHoshiki | E7: HotenHoshiki | H7: 3 | I7: TRUE | J7: H31-Hoken | L7: 3
A8: 7 | B8: 3 | C8: Label | D8: Lbl3_Hoken_HoshoGendo | E8: Hoken_HoshoGendo | I8: TRUE | J8: H31-Hoken
A9: 8 | B9: 3 | C9: Check | D9: CBx3_Hoken_HoshoGendo90 | E9: Hoken_HoshoGendo90 | F9: Hoken_HoshoGendo | H9: 3’ | I9: TRUE | J9: R6-Hoken | L9: 3
A10: 9 | B10: 3 | C10: Check | D10: CBx3_Hoken_HoshoGendo88 | E10: Hoken_HoshoGendo88 | F10: Hoken_HoshoGendo | H10: 3’ | I10: TRUE | J10: R6-Hoken | L10: 3
A11: 10 | B11: 3 | C11: Check | D11: CBx3_Hoken_HoshoGendo85 | E11: Hoken_HoshoGendo85 | F11: Hoken_HoshoGendo | H11: 3’ | I11: TRUE | J11: R6-Hoken | L11: 3
A12: 11 | B12: 3 | C12: Check | D12: CBx3_Hoken_HoshoGendo83 | E12: Hoken_HoshoGendo83 | F12: Hoken_HoshoGendo | H12: 3’ | I12: TRUE | J12: R6-Hoken | L12: 3
A13: 12 | B13: 3 | C13: Check | D13: CBx3_Hoken_HoshoGendo80 | E13: Hoken_HoshoGendo80 | F13: Hoken_HoshoGendo | H13: 3’ | I13: TRUE | J13: H31-Hoken | L13: 3
A14: 13 | B14: 3 | C14: Check | D14: CBx3_Hoken_HoshoGendo78 | E14: Hoken_HoshoGendo78 | F14: Hoken_HoshoGendo | H14: 3’ | I14: TRUE | J14: H31-Hoken | L14: 3
A15: 14 | B15: 3 | C15: Check | D15: CBx3_Hoken_HoshoGendo75 | E15: Hoken_HoshoGendo75 | F15: Hoken_HoshoGendo | H15: 3’ | I15: TRUE | J15: H31-Hoken | L15: 3
A16: 15 | B16: 3 | C16: Check | D16: CBx3_Hoken_HoshoGendo70 | E16: Hoken_HoshoGendo70 | F16: Hoken_HoshoGendo | H16: 3’ | I16: TRUE | J16: H31-Hoken | L16: 3
A17: 16 | B17: 3 | C17: Check | D17: CBx3_Hoken_HoshoGendo65 | E17: Hoken_HoshoGendo65 | F17: Hoken_HoshoGendo | H17: 3’ | I17: TRUE | J17: R6-Hoken | L17: 3
A18: 17 | B18: 3 | C18: Check | D18: CBx3_Hoken_HoshoGendo60 | E18: Hoken_HoshoGendo60 | F18: Hoken_HoshoGendo | H18: 3’ | I18: TRUE | J18: H31-Hoken | L18: 3
A19: 18 | B19: 3 | C19: Check | D19: CBx3_Hoken_HoshoGendo55 | E19: Hoken_HoshoGendo55 | F19: Hoken_HoshoGendo | H19: 3’ | I19: TRUE | J19: R6-Hoken | L19: 3
A20: 19 | B20: 3 | C20: Check | D20: CBx3_Hoken_HoshoGendo50 | E20: Hoken_HoshoGendo50 | F20: Hoken_HoshoGendo | H20: 3’ | I20: TRUE | J20: H31-Hoken | L20: 3
A21: 20 | B21: 3 | C21: Label | D21: Lbl3_Hoken_HoshoKagen | E21: Hoken_HoshoKagen | I21: TRUE | J21: R2-Hoken
A22: 21 | B22: 3 | C22: Check | D22: CBx3_Hoken_HoshoKagen70 | E22: Hoken_HoshoKagen70 | F22: Hoken_HoshoKagen | H22: 3’ | I22: TRUE | J22: R2-Hoken | L22: 3
A23: 22 | B23: 3 | C23: Check | D23: CBx3_Hoken_HoshoKagen60 | E23: Hoken_HoshoKagen60 | F23: Hoken_HoshoKagen | H23: 3’ | I23: TRUE | J23: R2-Hoken | L23: 3
A24: 23 | B24: 3 | C24: Check | D24: CBx3_Hoken_HoshoKagen50 | E24: Hoken_HoshoKagen50 | F24: Hoken_HoshoKagen | H24: 3’ | I24: TRUE | J24: R2-Hoken | L24: 3
A25: 24 | B25: 3 | C25: Check | D25: CBx3_Hoken_HoshoKagen00 | E25: Hoken_HoshoKagen00 | F25: Hoken_HoshoKagen | H25: 3’ | I25: TRUE | J25: R2-Hoken | L25: 3
A26: 25 | B26: 3 | C26: Label | D26: Lbl3_Hoken_Shiharairitsu | E26: Hoken_Shiharairitsu | I26: TRUE | J26: H31-Hoken
A27: 26 | B27: 3 | C27: Check | D27: CBx3_Hoken_Shiharairitsu90 | E27: Hoken_Shiharairitsu90 | F27: Hoken_Shiharairitsu | H27: 3’ | I27: TRUE | J27: H31-Hoken | L27: 3
A28: 27 | B28: 3 | C28: Check | D28: CBx3_Hoken_Shiharairitsu80 | E28: Hoken_Shiharairitsu80 | F28: Hoken_Shiharairitsu | H28: 3’ | I28: TRUE | J28: H31-Hoken | L28: 3
A29: 28 | B29: 3 | C29: Check | D29: CBx3_Hoken_Shiharairitsu70 | E29: Hoken_Shiharairitsu70 | F29: Hoken_Shiharairitsu | H29: 3’ | I29: TRUE | J29: H31-Hoken | L29: 3
A30: 29 | B30: 3 | C30: Check | D30: CBx3_Hoken_Shiharairitsu60 | E30: Hoken_Shiharairitsu60 | F30: Hoken_Shiharairitsu | H30: 3’ | I30: TRUE | J30: H31-Hoken | L30: 3
A31: 30 | B31: 3 | C31: Check | D31: CBx3_Hoken_Shiharairitsu50 | E31: Hoken_Shiharairitsu50 | F31: Hoken_Shiharairitsu | H31: 3’ | I31: TRUE | J31: H31-Hoken | L31: 3
A32: 31 | B32: 3 | C32: Label | D32: Lbl3_Tsumitate_HoshoHaba | E32: Tsumitate_HoshoHaba | I32: TRUE | J32: H31-Tsumitate
A33: 32 | B33: 3 | C33: Check | D33: CBx3_Tsumitate_HoshoHaba10 | E33: Tsumitate_HoshoHaba10 | F33: Tsumitate_HoshoHaba | H33: 3’ | I33: TRUE | J33: H31-Tsumitate | L33: 3
A34: 33 | B34: 3 | C34: Check | D34: CBx3_Tsumitate_HoshoHaba5 | E34: Tsumitate_HoshoHaba5 | F34: Tsumitate_HoshoHaba | H34: 3’ | I34: TRUE | J34: H31-Tsumitate | L34: 3
A35: 34 | B35: 3 | C35: Label | D35: Lbl3_Tsumitate_Shiharairitsu | E35: Tsumitate_Shiharairitsu | I35: TRUE | J35: H31-Tsumitate
A36: 35 | B36: 3 | C36: Check | D36: CBx3_Tsumitate_Shiharairitsu90 | E36: Tsumitate_Shiharairitsu90 | F36: Tsumitate_Shiharairitsu | H36: 3’ | I36: TRUE | J36: H31-Tsumitate | L36: 3
A37: 36 | B37: 3 | C37: Check | D37: CBx3_Tsumitate_Shiharairitsu80 | E37: Tsumitate_Shiharairitsu80 | F37: Tsumitate_Shiharairitsu | H37: 3’ | I37: TRUE | J37: H31-Tsumitate | L37: 3
A38: 37 | B38: 3 | C38: Check | D38: CBx3_Tsumitate_Shiharairitsu70 | E38: Tsumitate_Shiharairitsu70 | F38: Tsumitate_Shiharairitsu | H38: 3’ | I38: TRUE | J38: H31-Tsumitate | L38: 3
A39: 38 | B39: 3 | C39: Check | D39: CBx3_Tsumitate_Shiharairitsu60 | E39: Tsumitate_Shiharairitsu60 | F39: Tsumitate_Shiharairitsu | H39: 3’ | I39: TRUE | J39: H31-Tsumitate | L39: 3
A40: 39 | B40: 3 | C40: Check | D40: CBx3_Tsumitate_Shiharairitsu50 | E40: Tsumitate_Shiharairitsu50 | F40: Tsumitate_Shiharairitsu | H40: 3’ | I40: TRUE | J40: H31-Tsumitate | L40: 3
A41: 40 | B41: 3 | C41: Check | D41: CBx3_Tsumitate_Shiharairitsu40 | E41: Tsumitate_Shiharairitsu40 | F41: Tsumitate_Shiharairitsu | H41: 3’ | I41: TRUE | J41: R2-Tsumitate | L41: 3
A42: 41 | B42: 3 | C42: Check | D42: CBx3_Tsumitate_Shiharairitsu30 | E42: Tsumitate_Shiharairitsu30 | F42: Tsumitate_Shiharairitsu | H42: 3’ | I42: TRUE | J42: R2-Tsumitate | L42: 3
A43: 42 | B43: 3 | C43: Check | D43: CBx3_Tsumitate_Shiharairitsu20 | E43: Tsumitate_Shiharairitsu20 | F43: Tsumitate_Shiharairitsu | H43: 3’ | I43: TRUE | J43: R2-Tsumitate | L43: 3
A44: 43 | B44: 3 | C44: Check | D44: CBx3_Tsumitate_Shiharairitsu10 | E44: Tsumitate_Shiharairitsu10 | F44: Tsumitate_Shiharairitsu | H44: 3’ | I44: TRUE | J44: R2-Tsumitate | L44: 3
A45: 44 | B45: 3 | C45: Label | D45: Lbl3_KikenDankaiKubun | E45: KikenDankaiKubun | I45: TRUE | J45: R2-Hoken
A46: 45 | B46: 3 | C46: Combo | D46: CBx3_KikenDankaiKubun | E46: KikenDankaiKubun | H46: 3 | I46: TRUE | J46: R2-Hoken | L46: 3
A47: 46 | B47: 3 | C47: Combo | D47: CBx3_GekihenKanwaSochiTekiyo | E47: GekihenKanwaSochiTekiyo | H47: 3 | I47: TRUE | J47: R2-Hoken | L47: 3
A48: 47 | B48: 3 | C48: Label | D48: Lbl3_TsunagiZandaka | E48: TsunagiZandaka | I48: TRUE | J48: H31-Hoken
A49: 48 | B49: 3 | C49: Text | D49: TBx3_TsunagiZandaka | E49: TsunagiZandaka | H49: 3 | I49: TRUE | J49: H31-Hoken | K49: #,##0 | L49: 3
A50: 49 | B50: 3 | C50: Label | D50: Lbl3_KajuHeikinSongairitsuKiso | E50: KajuHeikinSongairitsuKiso | I50: TRUE | J50: R2-Hoken
A51: 50 | B51: 3 | C51: Label | D51: Lbl3_KajuHeikinSongairitsuKiso1 | E51: KajuHeikinSongairitsuKiso1 | F51: KajuHeikinSongairitsuKiso | I51: TRUE | J51: R2-Hoken
A52: 51 | B52: 3 | C52: Text | D52: TBx3_KajuHeikinSongairitsuKiso1 | E52: KajuHeikinSongairitsuKiso1 | F52: KajuHeikinSongairitsuKiso | H52: 3 | I52: TRUE | J52: R2-Hoken | K52: #,##0 | L52: 3
A53: 52 | B53: 3 | C53: Label | D53: Lbl3_KajuHeikinSongairitsuKiso2 | E53: KajuHeikinSongairitsuKiso2 | F53: KajuHeikinSongairitsuKiso | I53: TRUE | J53: R2-Hoken
A54: 53 | B54: 3 | C54: Text | D54: TBx3_KajuHeikinSongairitsuKiso2 | E54: KajuHeikinSongairitsuKiso2 | F54: KajuHeikinSongairitsuKiso | H54: 3 | I54: TRUE | J54: R2-Hoken | K54: #,##0 | L54: 3
A55: 54 | B55: 3 | C55: Label | D55: Lbl3_KajuHeikinSongairitsuKiso3 | E55: KajuHeikinSongairitsuKiso3 | F55: KajuHeikinSongairitsuKiso | I55: TRUE | J55: R2-Hoken
A56: 55 | B56: 3 | C56: Text | D56: TBx3_KajuHeikinSongairitsuKiso3 | E56: KajuHeikinSongairitsuKiso3 | F56: KajuHeikinSongairitsuKiso | H56: 3 | I56: TRUE | J56: R2-Hoken | K56: #,##0 | L56: 3
A57: 56 | B57: 3 | C57: Label | D57: Lbl3_MikomiNogyoTaishoHinmoku | E57: MikomiNogyoTaishoHinmoku | I57: TRUE | J57: H31-Hoken
A58: 57 | B58: 3 | C58: Combo | D58: CBx3_MikomiNogyoTaishoHinmoku | E58: MikomiNogyoTaishoHinmoku | H58: 3 | I58: TRUE | J58: H31-Hoken | L58: 3
A59: 58 | B59: 4 | C59: Label | D59: Lbl4_Meisai1 | E59: Meisai1 | G59: 1
A60: 59 | B60: 4 | C60: Label | D60: Lbl4_Meisai2 | E60: Meisai2 | G60: 2
A61: 60 | B61: 4 | C61: Label | D61: Lbl4_Meisai3 | E61: Meisai3 | G61: 3
A62: 61 | B62: 4 | C62: Label | D62: Lbl4_Meisai4 | E62: Meisai4 | G62: 4
A63: 62 | B63: 4 | C63: Label | D63: Lbl4_Meisai5 | E63: Meisai5 | G63: 5
A64: 63 | B64: 4 | C64: Label | D64: Lbl4_Meisai6 | E64: Meisai6 | G64: 6
A65: 64 | B65: 4 | C65: Label | D65: Lbl4_Meisai7 | E65: Meisai7 | G65: 7
A66: 65 | B66: 4 | C66: Label | D66: Lbl4_Meisai8 | E66: Meisai8 | G66: 8
A67: 66 | B67: 4 | C67: Label | D67: Lbl4_Meisai9 | E67: Meisai9 | G67: 9
A68: =A67+1 -> 67 | B68: 4 | C68: Label | D68: Lbl4_Meisai10 | E68: Meisai10 | G68: 10
A69: 68 | B69: 4 | C69: Label | D69: Lbl4_Meisai11 | E69: Meisai11
A70: 69 | B70: 4 | C70: Label | D70: Lbl4_ShuruiHinmoku | E70: ShuruiHinmoku
A71: 70 | B71: 4 | C71: Text | D71: TBx4_ShuruiHinmoku1 | E71: ShuruiHinmoku1 | G71: 1 | H71: 4 | L71: 4
A72: 71 | B72: 4 | C72: Text | D72: TBx4_ShuruiHinmoku2 | E72: ShuruiHinmoku2 | G72: 2 | H72: 4 | L72: 4
A73: 72 | B73: 4 | C73: Text | D73: TBx4_ShuruiHinmoku3 | E73: ShuruiHinmoku3 | G73: 3 | H73: 4 | L73: 4
A74: 73 | B74: 4 | C74: Text | D74: TBx4_ShuruiHinmoku4 | E74: ShuruiHinmoku4 | G74: 4 | H74: 4 | L74: 4
A75: 74 | B75: 4 | C75: Text | D75: TBx4_ShuruiHinmoku5 | E75: ShuruiHinmoku5 | G75: 5 | H75: 4 | L75: 4
A76: 75 | B76: 4 | C76: Text | D76: TBx4_ShuruiHinmoku6 | E76: ShuruiHinmoku6 | G76: 6 | H76: 4 | L76: 4
A77: 76 | B77: 4 | C77: Text | D77: TBx4_ShuruiHinmoku7 | E77: ShuruiHinmoku7 | G77: 7 | H77: 4 | L77: 4
A78: 77 | B78: 4 | C78: Text | D78: TBx4_ShuruiHinmoku8 | E78: ShuruiHinmoku8 | G78: 8 | H78: 4 | L78: 4
A79: 78 | B79: 4 | C79: Text | D79: TBx4_ShuruiHinmoku9 | E79: ShuruiHinmoku9 | G79: 9 | H79: 4 | L79: 4
A80: 79 | B80: 4 | C80: Text | D80: TBx4_ShuruiHinmoku10 | E80: ShuruiHinmoku10 | G80: 10 | H80: 4 | L80: 4
A81: 80 | B81: 4 | C81: Label | D81: Lbl4_KishuTanaoroshi | E81: KishuTanaoroshi
A82: 81 | B82: 4 | C82: Text | D82: TBx4_KishuTanaoroshi1 | E82: KishuTanaoroshi1 | F82: KishuTanaoroshi | G82: 1 | H82: 4 | K82: #,##0 | L82: 4
A83: 82 | B83: 4 | C83: Text | D83: TBx4_KishuTanaoroshi2 | E83: KishuTanaoroshi2 | F83: KishuTanaoroshi | G83: 2 | H83: 4 | K83: #,##0 | L83: 4
A84: 83 | B84: 4 | C84: Text | D84: TBx4_KishuTanaoroshi3 | E84: KishuTanaoroshi3 | F84: KishuTanaoroshi | G84: 3 | H84: 4 | K84: #,##0 | L84: 4
A85: 84 | B85: 4 | C85: Text | D85: TBx4_KishuTanaoroshi4 | E85: KishuTanaoroshi4 | F85: KishuTanaoroshi | G85: 4 | H85: 4 | K85: #,##0 | L85: 4
A86: 85 | B86: 4 | C86: Text | D86: TBx4_KishuTanaoroshi5 | E86: KishuTanaoroshi5 | F86: KishuTanaoroshi | G86: 5 | H86: 4 | K86: #,##0 | L86: 4
A87: 86 | B87: 4 | C87: Text | D87: TBx4_KishuTanaoroshi6 | E87: KishuTanaoroshi6 | F87: KishuTanaoroshi | G87: 6 | H87: 4 | K87: #,##0 | L87: 4
A88: 87 | B88: 4 | C88: Text | D88: TBx4_KishuTanaoroshi7 | E88: KishuTanaoroshi7 | F88: KishuTanaoroshi | G88: 7 | H88: 4 | K88: #,##0 | L88: 4
A89: 88 | B89: 4 | C89: Text | D89: TBx4_KishuTanaoroshi8 | E89: KishuTanaoroshi8 | F89: KishuTanaoroshi | G89: 8 | H89: 4 | K89: #,##0 | L89: 4
A90: 89 | B90: 4 | C90: Text | D90: TBx4_KishuTanaoroshi9 | E90: KishuTanaoroshi9 | F90: KishuTanaoroshi | G90: 9 | H90: 4 | K90: #,##0 | L90: 4
A91: 90 | B91: 4 | C91: Text | D91: TBx4_KishuTanaoroshi10 | E91: KishuTanaoroshi10 | F91: KishuTanaoroshi | G91: 10 | H91: 4 | K91: #,##0 | L91: 4
A92: 91 | B92: 4 | C92: Text | D92: TBx4_KishuTanaoroshi11 | E92: KishuTanaoroshi11 | F92: KishuTanaoroshi | H92: 4 | K92: #,##0 | L92: 4
A93: 92 | B93: 4 | C93: Label | D93: Lbl4_KishuTanaoroshiYen1 | E93: KishuTanaoroshiYen1 | G93: 1
A94: 93 | B94: 4 | C94: Label | D94: Lbl4_KishuTanaoroshiYen2 | E94: KishuTanaoroshiYen2 | G94: 2
A95: 94 | B95: 4 | C95: Label | D95: Lbl4_KishuTanaoroshiYen3 | E95: KishuTanaoroshiYen3 | G95: 3
A96: 95 | B96: 4 | C96: Label | D96: Lbl4_KishuTanaoroshiYen4 | E96: KishuTanaoroshiYen4 | G96: 4
A97: 96 | B97: 4 | C97: Label | D97: Lbl4_KishuTanaoroshiYen5 | E97: KishuTanaoroshiYen5 | G97: 5
A98: 97 | B98: 4 | C98: Label | D98: Lbl4_KishuTanaoroshiYen6 | E98: KishuTanaoroshiYen6 | G98: 6
A99: 98 | B99: 4 | C99: Label | D99: Lbl4_KishuTanaoroshiYen7 | E99: KishuTanaoroshiYen7 | G99: 7
A100: 99 | B100: 4 | C100: Label | D100: Lbl4_KishuTanaoroshiYen8 | E100: KishuTanaoroshiYen8 | G100: 8
A101: 100 | B101: 4 | C101: Label | D101: Lbl4_KishuTanaoroshiYen9 | E101: KishuTanaoroshiYen9 | G101: 9
A102: 101 | B102: 4 | C102: Label | D102: Lbl4_KishuTanaoroshiYen10 | E102: KishuTanaoroshiYen10 | G102: 10
A103: 102 | B103: 4 | C103: Label | D103: Lbl4_KishuTanaoroshiYen11 | E103: KishuTanaoroshiYen11
A104: 103 | B104: 4 | C104: Label | D104: Lbl4_JigyoShohi | E104: JigyoShohi
A105: 104 | B105: 4 | C105: Text | D105: TBx4_JigyoShohi1 | E105: JigyoShohi1 | F105: JigyoShohi | G105: 1 | H105: 4 | K105: #,##0.0 | L105: 4
A106: 105 | B106: 4 | C106: Text | D106: TBx4_JigyoShohi2 | E106: JigyoShohi2 | F106: JigyoShohi | G106: 2 | H106: 4 | K106: #,##0.0 | L106: 4
A107: 106 | B107: 4 | C107: Text | D107: TBx4_JigyoShohi3 | E107: JigyoShohi3 | F107: JigyoShohi | G107: 3 | H107: 4 | K107: #,##0.0 | L107: 4
A108: 107 | B108: 4 | C108: Text | D108: TBx4_JigyoShohi4 | E108: JigyoShohi4 | F108: JigyoShohi | G108: 4 | H108: 4 | K108: #,##0.0 | L108: 4
A109: 108 | B109: 4 | C109: Text | D109: TBx4_JigyoShohi5 | E109: JigyoShohi5 | F109: JigyoShohi | G109: 5 | H109: 4 | K109: #,##0.0 | L109: 4
A110: 109 | B110: 4 | C110: Text | D110: TBx4_JigyoShohi6 | E110: JigyoShohi6 | F110: JigyoShohi | G110: 6 | H110: 4 | K110: #,##0.0 | L110: 4
A111: 110 | B111: 4 | C111: Text | D111: TBx4_JigyoShohi7 | E111: JigyoShohi7 | F111: JigyoShohi | G111: 7 | H111: 4 | K111: #,##0.0 | L111: 4
A112: 111 | B112: 4 | C112: Text | D112: TBx4_JigyoShohi8 | E112: JigyoShohi8 | F112: JigyoShohi | G112: 8 | H112: 4 | K112: #,##0.0 | L112: 4
A113: 112 | B113: 4 | C113: Text | D113: TBx4_JigyoShohi9 | E113: JigyoShohi9 | F113: JigyoShohi | G113: 9 | H113: 4 | K113: #,##0.0 | L113: 4
A114: 113 | B114: 4 | C114: Text | D114: TBx4_JigyoShohi10 | E114: JigyoShohi10 | F114: JigyoShohi | G114: 10 | H114: 4 | K114: #,##0.0 | L114: 4
A115: 114 | B115: 4 | C115: Label | D115: Lbl4_JigyoShohiYenKgto1 | E115: JigyoShohiYenKgto1 | G115: 1
A116: 115 | B116: 4 | C116: Label | D116: Lbl4_JigyoShohiYenKgto2 | E116: JigyoShohiYenKgto2 | G116: 2
A117: 116 | B117: 4 | C117: Label | D117: Lbl4_JigyoShohiYenKgto3 | E117: JigyoShohiYenKgto3 | G117: 3
A118: 117 | B118: 4 | C118: Label | D118: Lbl4_JigyoShohiYenKgto4 | E118: JigyoShohiYenKgto4 | G118: 4
A119: 118 | B119: 4 | C119: Label | D119: Lbl4_JigyoShohiYenKgto5 | E119: JigyoShohiYenKgto5 | G119: 5
A120: 119 | B120: 4 | C120: Label | D120: Lbl4_JigyoShohiYenKgto6 | E120: JigyoShohiYenKgto6 | G120: 6
A121: 120 | B121: 4 | C121: Label | D121: Lbl4_JigyoShohiYenKgto7 | E121: JigyoShohiYenKgto7 | G121: 7
A122: 121 | B122: 4 | C122: Label | D122: Lbl4_JigyoShohiYenKgto8 | E122: JigyoShohiYenKgto8 | G122: 8
A123: 122 | B123: 4 | C123: Label | D123: Lbl4_JigyoShohiYenKgto9 | E123: JigyoShohiYenKgto9 | G123: 9
A124: 123 | B124: 4 | C124: Label | D124: Lbl4_JigyoShohiYenKgto10 | E124: JigyoShohiYenKgto10 | G124: 10
A125: 124 | B125: 4 | C125: Label | D125: Lbl4_KimatsuTanaoroshi | E125: KimatsuTanaoroshi
A126: 125 | B126: 4 | C126: Text | D126: TBx4_KimatsuTanaoroshi1 | E126: KimatsuTanaoroshi1 | F126: KimatsuTanaoroshi | G126: 1 | H126: 4 | K126: #,##0.0 | L126: 4
A127: 126 | B127: 4 | C127: Text | D127: TBx4_KimatsuTanaoroshi2 | E127: KimatsuTanaoroshi2 | F127: KimatsuTanaoroshi | G127: 2 | H127: 4 | K127: #,##0.0 | L127: 4
A128: 127 | B128: 4 | C128: Text | D128: TBx4_KimatsuTanaoroshi3 | E128: KimatsuTanaoroshi3 | F128: KimatsuTanaoroshi | G128: 3 | H128: 4 | K128: #,##0.0 | L128: 4
A129: 128 | B129: 4 | C129: Text | D129: TBx4_KimatsuTanaoroshi4 | E129: KimatsuTanaoroshi4 | F129: KimatsuTanaoroshi | G129: 4 | H129: 4 | K129: #,##0.0 | L129: 4
A130: 129 | B130: 4 | C130: Text | D130: TBx4_KimatsuTanaoroshi5 | E130: KimatsuTanaoroshi5 | F130: KimatsuTanaoroshi | G130: 5 | H130: 4 | K130: #,##0.0 | L130: 4
A131: 130 | B131: 4 | C131: Text | D131: TBx4_KimatsuTanaoroshi6 | E131: KimatsuTanaoroshi6 | F131: KimatsuTanaoroshi | G131: 6 | H131: 4 | K131: #,##0.0 | L131: 4
A132: =A131+1 -> 131 | B132: 4 | C132: Text | D132: TBx4_KimatsuTanaoroshi7 | E132: KimatsuTanaoroshi7 | F132: KimatsuTanaoroshi | G132: 7 | H132: 4 | K132: #,##0.0 | L132: 4
A133: 132 | B133: 4 | C133: Text | D133: TBx4_KimatsuTanaoroshi8 | E133: KimatsuTanaoroshi8 | F133: KimatsuTanaoroshi | G133: 8 | H133: 4 | K133: #,##0.0 | L133: 4
A134: 133 | B134: 4 | C134: Text | D134: TBx4_KimatsuTanaoroshi9 | E134: KimatsuTanaoroshi9 | F134: KimatsuTanaoroshi | G134: 9 | H134: 4 | K134: #,##0.0 | L134: 4
A135: 134 | B135: 4 | C135: Text | D135: TBx4_KimatsuTanaoroshi10 | E135: KimatsuTanaoroshi10 | F135: KimatsuTanaoroshi | G135: 10 | H135: 4 | K135: #,##0.0 | L135: 4
A136: 135 | B136: 4 | C136: Label | D136: Lbl4_KimatsuTanaoroshiYenKgto1 | E136: KimatsuTanaoroshiYenKgto1 | G136: 1
A137: 136 | B137: 4 | C137: Label | D137: Lbl4_KimatsuTanaoroshiYenKgto2 | E137: KimatsuTanaoroshiYenKgto2 | G137: 2
A138: 137 | B138: 4 | C138: Label | D138: Lbl4_KimatsuTanaoroshiYenKgto3 | E138: KimatsuTanaoroshiYenKgto3 | G138: 3
A139: 138 | B139: 4 | C139: Label | D139: Lbl4_KimatsuTanaoroshiYenKgto4 | E139: KimatsuTanaoroshiYenKgto4 | G139: 4
A140: 139 | B140: 4 | C140: Label | D140: Lbl4_KimatsuTanaoroshiYenKgto5 | E140: KimatsuTanaoroshiYenKgto5 | G140: 5
A141: 140 | B141: 4 | C141: Label | D141: Lbl4_KimatsuTanaoroshiYenKgto6 | E141: KimatsuTanaoroshiYenKgto6 | G141: 6
A142: 141 | B142: 4 | C142: Label | D142: Lbl4_KimatsuTanaoroshiYenKgto7 | E142: KimatsuTanaoroshiYenKgto7 | G142: 7
A143: 142 | B143: 4 | C143: Label | D143: Lbl4_KimatsuTanaoroshiYenKgto8 | E143: KimatsuTanaoroshiYenKgto8 | G143: 8
A144: 143 | B144: 4 | C144: Label | D144: Lbl4_KimatsuTanaoroshiYenKgto9 | E144: KimatsuTanaoroshiYenKgto9 | G144: 9
A145: 144 | B145: 4 | C145: Label | D145: Lbl4_KimatsuTanaoroshiYenKgto10 | E145: KimatsuTanaoroshiYenKgto10 | G145: 10
A146: 145 | B146: 4 | C146: Label | D146: Lbl4_MikomiNogyoShunyu | E146: MikomiNogyoShunyu
A147: 146 | B147: 4 | C147: Text | D147: TBx4_MikomiNogyoShunyu1 | E147: MikomiNogyoShunyu1 | F147: MikomiNogyoShunyu | G147: 1 | H147: 4 | K147: #,##0 | L147: 4
A148: 147 | B148: 4 | C148: Text | D148: TBx4_MikomiNogyoShunyu2 | E148: MikomiNogyoShunyu2 | F148: MikomiNogyoShunyu | G148: 2 | H148: 4 | K148: #,##0 | L148: 4
A149: 148 | B149: 4 | C149: Text | D149: TBx4_MikomiNogyoShunyu3 | E149: MikomiNogyoShunyu3 | F149: MikomiNogyoShunyu | G149: 3 | H149: 4 | K149: #,##0 | L149: 4
A150: 149 | B150: 4 | C150: Text | D150: TBx4_MikomiNogyoShunyu4 | E150: MikomiNogyoShunyu4 | F150: MikomiNogyoShunyu | G150: 4 | H150: 4 | K150: #,##0 | L150: 4
A151: 150 | B151: 4 | C151: Text | D151: TBx4_MikomiNogyoShunyu5 | E151: MikomiNogyoShunyu5 | F151: MikomiNogyoShunyu | G151: 5 | H151: 4 | K151: #,##0 | L151: 4
A152: 151 | B152: 4 | C152: Text | D152: TBx4_MikomiNogyoShunyu6 | E152: MikomiNogyoShunyu6 | F152: MikomiNogyoShunyu | G152: 6 | H152: 4 | K152: #,##0 | L152: 4
A153: 152 | B153: 4 | C153: Text | D153: TBx4_MikomiNogyoShunyu7 | E153: MikomiNogyoShunyu7 | F153: MikomiNogyoShunyu | G153: 7 | H153: 4 | K153: #,##0 | L153: 4
A154: 153 | B154: 4 | C154: Text | D154: TBx4_MikomiNogyoShunyu8 | E154: MikomiNogyoShunyu8 | F154: MikomiNogyoShunyu | G154: 8 | H154: 4 | K154: #,##0 | L154: 4
A155: 154 | B155: 4 | C155: Text | D155: TBx4_MikomiNogyoShunyu9 | E155: MikomiNogyoShunyu9 | F155: MikomiNogyoShunyu | G155: 9 | H155: 4 | K155: #,##0 | L155: 4
A156: 155 | B156: 4 | C156: Text | D156: TBx4_MikomiNogyoShunyu10 | E156: MikomiNogyoShunyu10 | F156: MikomiNogyoShunyu | G156: 10 | H156: 4 | K156: #,##0 | L156: 4
A157: 156 | B157: 4 | C157: Text | D157: TBx4_MikomiNogyoShunyu11 | E157: MikomiNogyoShunyu11 | F157: MikomiNogyoShunyu | H157: 4 | K157: #,##0 | L157: 4
A158: 157 | B158: 4 | C158: Label | D158: Lbl4_MikomiNogyoShunyuYen1 | E158: MikomiNogyoShunyuYen1 | G158: 1
A159: 158 | B159: 4 | C159: Label | D159: Lbl4_MikomiNogyoShunyuYen2 | E159: MikomiNogyoShunyuYen2 | G159: 2
A160: 159 | B160: 4 | C160: Label | D160: Lbl4_MikomiNogyoShunyuYen3 | E160: MikomiNogyoShunyuYen3 | G160: 3
A161: 160 | B161: 4 | C161: Label | D161: Lbl4_MikomiNogyoShunyuYen4 | E161: MikomiNogyoShunyuYen4 | G161: 4
A162: 161 | B162: 4 | C162: Label | D162: Lbl4_MikomiNogyoShunyuYen5 | E162: MikomiNogyoShunyuYen5 | G162: 5
A163: 162 | B163: 4 | C163: Label | D163: Lbl4_MikomiNogyoShunyuYen6 | E163: MikomiNogyoShunyuYen6 | G163: 6
A164: 163 | B164: 4 | C164: Label | D164: Lbl4_MikomiNogyoShunyuYen7 | E164: MikomiNogyoShunyuYen7 | G164: 7
A165: 164 | B165: 4 | C165: Label | D165: Lbl4_MikomiNogyoShunyuYen8 | E165: MikomiNogyoShunyuYen8 | G165: 8
A166: 165 | B166: 4 | C166: Label | D166: Lbl4_MikomiNogyoShunyuYen9 | E166: MikomiNogyoShunyuYen9 | G166: 9
A167: 166 | B167: 4 | C167: Label | D167: Lbl4_MikomiNogyoShunyuYen10 | E167: MikomiNogyoShunyuYen10 | G167: 10
A168: 167 | B168: 4 | C168: Label | D168: Lbl4_MikomiNogyoShunyuYen11 | E168: MikomiNogyoShunyuYen11
A169: 168 | B169: 5 | C169: Label | D169: Lbl5_Meisai1 | E169: Meisai1 | G169: 1
A170: 169 | B170: 5 | C170: Label | D170: Lbl5_Meisai2 | E170: Meisai2 | G170: 2
A171: 170 | B171: 5 | C171: Label | D171: Lbl5_Meisai3 | E171: Meisai3 | G171: 3
A172: 171 | B172: 5 | C172: Label | D172: Lbl5_Meisai4 | E172: Meisai4 | G172: 4
A173: 172 | B173: 5 | C173: Label | D173: Lbl5_Meisai5 | E173: Meisai5 | G173: 5
A174: 173 | B174: 5 | C174: Label | D174: Lbl5_Meisai6 | E174: Meisai6 | G174: 6
A175: 174 | B175: 5 | C175: Label | D175: Lbl5_Meisai7 | E175: Meisai7 | G175: 7
A176: 175 | B176: 5 | C176: Label | D176: Lbl5_Meisai8 | E176: Meisai8 | G176: 8
A177: 176 | B177: 5 | C177: Label | D177: Lbl5_Meisai9 | E177: Meisai9 | G177: 9
A178: 177 | B178: 5 | C178: Label | D178: Lbl5_Meisai10 | E178: Meisai10 | G178: 10
A179: 178 | B179: 5 | C179: Label | D179: Lbl5_ShuruiHinmoku | E179: ShuruiHinmoku
A180: 179 | B180: 5 | C180: Label | D180: Lbl5_ShuruiHinmoku1 | E180: ShuruiHinmoku1 | G180: 1
A181: 180 | B181: 5 | C181: Label | D181: Lbl5_ShuruiHinmoku2 | E181: ShuruiHinmoku2 | G181: 2
A182: 181 | B182: 5 | C182: Label | D182: Lbl5_ShuruiHinmoku3 | E182: ShuruiHinmoku3 | G182: 3
A183: 182 | B183: 5 | C183: Label | D183: Lbl5_ShuruiHinmoku4 | E183: ShuruiHinmoku4 | G183: 4
A184: 183 | B184: 5 | C184: Label | D184: Lbl5_ShuruiHinmoku5 | E184: ShuruiHinmoku5 | G184: 5
A185: 184 | B185: 5 | C185: Label | D185: Lbl5_ShuruiHinmoku6 | E185: ShuruiHinmoku6 | G185: 6
A186: 185 | B186: 5 | C186: Label | D186: Lbl5_ShuruiHinmoku7 | E186: ShuruiHinmoku7 | G186: 7
A187: 186 | B187: 5 | C187: Label | D187: Lbl5_ShuruiHinmoku8 | E187: ShuruiHinmoku8 | G187: 8
A188: 187 | B188: 5 | C188: Label | D188: Lbl5_ShuruiHinmoku9 | E188: ShuruiHinmoku9 | G188: 9
A189: 188 | B189: 5 | C189: Label | D189: Lbl5_ShuruiHinmoku10 | E189: ShuruiHinmoku10 | G189: 10
A190: 189 | B190: 5 | C190: Label | D190: Lbl5_Suryobarai | E190: Suryobarai
A191: 190 | B191: 5 | C191: Text | D191: TBx5_Suryobarai1 | E191: Suryobarai1 | F191: Suryobarai | G191: 1 | H191: 5 | K191: #,##0 | L191: 5
A192: 191 | B192: 5 | C192: Text | D192: TBx5_Suryobarai2 | E192: Suryobarai2 | F192: Suryobarai | G192: 2 | H192: 5 | K192: #,##0 | L192: 5
A193: 192 | B193: 5 | C193: Text | D193: TBx5_Suryobarai3 | E193: Suryobarai3 | F193: Suryobarai | G193: 3 | H193: 5 | K193: #,##0 | L193: 5
A194: 193 | B194: 5 | C194: Text | D194: TBx5_Suryobarai4 | E194: Suryobarai4 | F194: Suryobarai | G194: 4 | H194: 5 | K194: #,##0 | L194: 5
A195: 194 | B195: 5 | C195: Text | D195: TBx5_Suryobarai5 | E195: Suryobarai5 | F195: Suryobarai | G195: 5 | H195: 5 | K195: #,##0 | L195: 5
A196: =A195+1 -> 195 | B196: 5 | C196: Text | D196: TBx5_Suryobarai6 | E196: Suryobarai6 | F196: Suryobarai | G196: 6 | H196: 5 | K196: #,##0 | L196: 5
A197: 196 | B197: 5 | C197: Text | D197: TBx5_Suryobarai7 | E197: Suryobarai7 | F197: Suryobarai | G197: 7 | H197: 5 | K197: #,##0 | L197: 5
A198: 197 | B198: 5 | C198: Text | D198: TBx5_Suryobarai8 | E198: Suryobarai8 | F198: Suryobarai | G198: 8 | H198: 5 | K198: #,##0 | L198: 5
A199: 198 | B199: 5 | C199: Text | D199: TBx5_Suryobarai9 | E199: Suryobarai9 | F199: Suryobarai | G199: 9 | H199: 5 | K199: #,##0 | L199: 5
A200: 199 | B200: 5 | C200: Text | D200: TBx5_Suryobarai10 | E200: Suryobarai10 | F200: Suryobarai | G200: 10 | H200: 5 | K200: #,##0 | L200: 5
... 617 more rows

Sheet Element
A1: 縦要素数 | B1: =COUNTA(A5:A104) -> 5
A2: 横要素数 | B2: =MAX(C5:C104) -> 21
C4: 要素数 | D4: 1 | E4: 2 | F4: 3 | G4: 4 | H4: 5 | I4: 6 | J4: 7 | K4: 8 | L4: 9 | M4: 10 | N4: 11 | O4: 12 | P4: 13 | Q4: 14 | R4: 15 | S4: 16 | T4: 17 | U4: 18 | V4: 19 | W4: 20 | X4: 21
A5: CBx3_HokenStartY | B5: HokenStartY | C5: =COUNTA(D5:X5) -> 1 | D5: 令和 7年
A6: CBx3_HotenHoshiki | B6: HotenHoshiki | C6: =COUNTA(D6:X6) -> 2 | D6: 保険方式＋積立方式 | E6: 保険方式のみ
A7: CBx3_KikenDankaiKubun | B7: KikenDankaiKubun | C7: =COUNTA(D7:X7) -> 21 | D7: 10区分 | E7: 9区分 | F7: 8区分 | G7: 7区分 | H7: 6区分 | I7: 5区分 | J7: 4区分 | K7: 3区分 | L7: 2区分 | M7: 1区分 | N7: 0区分 | O7: -1区分 | P7: -2区分 | Q7: -3区分 | R7: -4区分 | S7: -5区分 | T7: -6区分 | U7: -7区分 | V7: -8区分 | W7: -9区分 | X7: -10区分
A8: CBx3_GekihenKanwaSochiTekiyo | B8: GekihenKanwaSochiTekiyo | C8: =COUNTA(D8:X8) -> 2 | D8: 激変緩和措置適用なし | E8: 激変緩和措置適用あり
A9: CBx3_MikomiNogyoTaishoHinmoku | B9: MikomiNogyoTaishoHinmoku | C9: =COUNTA(D9:X9) -> 11 | D9: 1品目 | E9: 2品目 | F9: 3品目 | G9: 4品目 | H9: 5品目 | I9: 6品目 | J9: 7品目 | K9: 8品目 | L9: 9品目 | M9: 10品目 | N9: 11品目以上
E11: 令和 7年 | F11: 令和 8年 | G11: 令和 9年

Sheet LoadData

Sheet 3年後見込
C1: 10年前 | D1: 9年前 | E1: 8年前 | F1: 7年前 | G1: 6年前 | H1: 5年前 | I1: 4年前 | J1: 3年前 | K1: 2年前 | L1: 1年前 | M1: 計 | O1: 保険料率 | P1: 保険限度 | Q1: 補償の下限 | R1: 危険段階 | S1: KEY | U1: 標準保険料率 | V1: KEY
B2: 損害率 | C2: 100 | D2: 100 | E2: 100 | F2: 100 | G2: 100 | H2: 100 | I2: 100 | J2: 100 | K2: 100 | L2: 100 | O2: =VLOOKUP(S2,保険料率!D:E,2,FALSE) -> 2.357 | P2: =Hoken_HoshoGendo -> 80 | Q2: =Hoken_HoshoKagen -> 0 | R2: =KikenDankai -> 0 | S2: =TEXT(P2,"00")&TEXT(Q2,"00")&TEXT(R2+10,"00") -> 800010 | U2: =VLOOKUP(V2,保険料率!I:J,2,FALSE) -> 2.357 | V2: =TEXT(P2,"00")&TEXT(Q2,"00") -> 8000
B3: ウェイト | C3: 10 | D3: 20 | E3: 30 | F3: 40 | G3: 50 | H3: 60 | I3: 70 | J3: 80 | K3: 90 | L3: 100 | O3: 保険料 | U3: 標準保険料
B4: ポイント | C4: =C2*C3 -> 1000 | D4: =D2*D3 -> 2000 | E4: 3000 | F4: 4000 | G4: 5000 | H4: 6000 | I4: 7000 | J4: 8000 | K4: 9000 | L4: 10000 | M4: =SUM(C4:L4) -> 55000 | O4: =ROUNDUP(ROUNDDOWN(HokenKingaku*O2/100,0)/2,0) -> 0 | U4: =ROUNDDOWN(HokenKingaku*U2/100,0) -> 0
C7: 10年前 | D7: 9年前 | E7: 8年前 | F7: 7年前 | G7: 6年前 | H7: 5年前 | I7: 4年前 | J7: 3年前 | K7: 2年前 | L7: 1年前 | M7: 計 | O7: 保険料率 | P7: 保険限度 | Q7: 補償の下限 | R7: 危険段階 | S7: KEY | U7: 標準保険料率 | V7: KEY
B8: 損害率 | L8: =ROUNDDOWN(結果_Form!K57/'3年後見込'!U4*100,0) ->  | O8: =VLOOKUP(S8,保険料率!D:E,2,FALSE) ->  | P8: =Hoken_HoshoGendo -> 80 | Q8: =Hoken_HoshoKagen -> 0 | R8: =損害率!D27 ->  | S8: =TEXT(P8,"00")&TEXT(Q8,"00")&TEXT(R8+10,"00") ->  | U8: =VLOOKUP(V8,保険料率!I:J,2,FALSE) -> 2.357 | V8: =TEXT(P8,"00")&TEXT(Q8,"00") -> 8000
B9: ウェイト | L9: =L3 -> 100 | O9: 保険料 | P9: 標準保険料 | U9: 標準保険料
B10: ポイント | C10: =IF(KajuHeikinSongairitsuKiso1>0,KajuHeikinSongairitsuKiso1,SUM(C4:K4)) -> 45000 | L10: =L8*L9 ->  | M10: =SUM(C10:L10) ->  | O10: =ROUNDUP(ROUNDDOWN(HokenKingaku*O8/100,0)/2,0) ->  | P10: =ROUNDDOWN(HokenKingaku*O8/100,0) ->  | U10: =ROUNDDOWN(HokenKingaku*U8/100,0) -> 0
B11: 加重平均損害率 | M11: =M10/M$4*100 -> 
C13: 10年前 | D13: 9年前 | E13: 8年前 | F13: 7年前 | G13: 6年前 | H13: 5年前 | I13: 4年前 | J13: 3年前 | K13: 2年前 | L13: 1年前 | M13: 計 | O13: 保険料率 | P13: 保険限度 | Q13: 補償の下限 | R13: 危険段階 | S13: KEY | U13: 標準保険料率 | V13: KEY
B14: 損害率 | K14: =L8 ->  | L14: 0 | O14: =VLOOKUP(S14,保険料率!D:E,2,FALSE) ->  | P14: =Hoken_HoshoGendo -> 80 | Q14: =Hoken_HoshoKagen -> 0 | R14: =損害率!E27 ->  | S14: =TEXT(P14,"00")&TEXT(Q14,"00")&TEXT(R14+10,"00") ->  | U14: =VLOOKUP(V14,保険料率!I:J,2,FALSE) -> 2.357 | V14: =TEXT(P14,"00")&TEXT(Q14,"00") -> 8000
B15: ウェイト | K15: =K3 -> 90 | L15: =L3 -> 100 | O15: 保険料 | U15: 標準保険料
B16: ポイント | C16: =IF(KajuHeikinSongairitsuKiso2>0,KajuHeikinSongairitsuKiso2,SUM(C4:J4)) -> 36000 | K16: =K14*K15 ->  | L16: =L14*L15 -> 0 | M16: =SUM(C16:L16) ->  | O16: =ROUNDUP(ROUNDDOWN(HokenKingaku*O14/100,0)/2,0) ->  | U16: =ROUNDDOWN(HokenKingaku*U14/100,0) -> 0
B17: 加重平均損害率 | M17: =M16/M$4*100 -> 
C19: 10年前 | D19: 9年前 | E19: 8年前 | F19: 7年前 | G19: 6年前 | H19: 5年前 | I19: 4年前 | J19: 3年前 | K19: 2年前 | L19: 1年前 | M19: 計 | O19: 保険料率 | P19: 保険限度 | Q19: 補償の下限 | R19: 危険段階 | S19: KEY | U19: 標準保険料率 | V19: KEY
B20: 損害率 | J20: =K14 ->  | K20: 0 | L20: 0 | O20: =VLOOKUP(S20,保険料率!D:E,2,FALSE) ->  | P20: =Hoken_HoshoGendo -> 80 | Q20: =Hoken_HoshoKagen -> 0 | R20: =損害率!F27 ->  | S20: =TEXT(P20,"00")&TEXT(Q20,"00")&TEXT(R20+10,"00") ->  | U20: =VLOOKUP(V20,保険料率!I:J,2,FALSE) -> 2.357 | V20: =TEXT(P20,"00")&TEXT(Q20,"00") -> 8000
B21: ウェイト | J21: =J3 -> 80 | K21: =K3 -> 90 | L21: =L3 -> 100 | O21: 保険料 | U21: 標準保険料
B22: ポイント | C22: =IF(KajuHeikinSongairitsuKiso3>0,KajuHeikinSongairitsuKiso3,SUM(C4:I4)) -> 28000 | J22: =J20*J21 ->  | K22: =K20*K21 -> 0 | L22: =L20*L21 -> 0 | M22: =SUM(C22:L22) ->  | O22: =ROUNDUP(ROUNDDOWN(HokenKingaku*O20/100,0)/2,0) ->  | U22: =ROUNDDOWN(HokenKingaku*U20/100,0) -> 0
B23: 加重平均損害率 | M23: =M22/M$4*100 -> 
C28: 10年前 | D28: 9年前 | E28: 8年前 | F28: 7年前 | G28: 6年前 | H28: 5年前 | I28: 4年前 | J28: 3年前 | K28: 2年前 | L28: 1年前 | M28: 計 | O28: 保険料率 | P28: 保険限度 | Q28: 補償の下限 | R28: 危険段階 | S28: KEY | U28: 標準保険料率 | V28: KEY
B29: 損害率 | L29: =結果_Form!K78/'3年後見込'!O4*100 ->  | O29: =VLOOKUP(S29,保険料率!D:E,2,FALSE) ->  | P29: =Hoken_HoshoGendo -> 80 | Q29: =Hoken_HoshoKagen -> 0 | R29: =損害率!L27 ->  | S29: =TEXT(P29,"00")&TEXT(Q29,"00")&TEXT(R29+10,"00") ->  | U29: =VLOOKUP(V29,保険料率!I:J,2,FALSE) -> 2.357 | V29: =TEXT(P29,"00")&TEXT(Q29,"00") -> 8000
B30: ウェイト | L30: =L3 -> 100 | O30: 保険料 | U30: 標準保険料
B31: ポイント | C31: =C10 -> 45000 | L31: =L29*L30 ->  | M31: =SUM(C31:L31) ->  | O31: =ROUNDUP(ROUNDDOWN(HokenKingaku*O29/100,0)/2,0) ->  | U31: =ROUNDDOWN(HokenKingaku*U29/100,0) -> 0
B32: 加重平均損害率 | M32: =M31/M$4*100 -> 
C34: 10年前 | D34: 9年前 | E34: 8年前 | F34: 7年前 | G34: 6年前 | H34: 5年前 | I34: 4年前 | J34: 3年前 | K34: 2年前 | L34: 1年前 | M34: 計 | O34: 保険料率 | P34: 保険限度 | Q34: 補償の下限 | R34: 危険段階 | S34: KEY | U34: 標準保険料率 | V34: KEY
B35: 損害率 | K35: =L29 ->  | L35: 0 | O35: =VLOOKUP(S35,保険料率!D:E,2,FALSE) ->  | P35: =Hoken_HoshoGendo -> 80 | Q35: =Hoken_HoshoKagen -> 0 | R35: =損害率!M27 ->  | S35: =TEXT(P35,"00")&TEXT(Q35,"00")&TEXT(R35+10,"00") ->  | U35: =VLOOKUP(V35,保険料率!I:J,2,FALSE) -> 2.357 | V35: =TEXT(P35,"00")&TEXT(Q35,"00") -> 8000
B36: ウェイト | K36: =K3 -> 90 | L36: =L3 -> 100 | O36: 保険料 | U36: 標準保険料
B37: ポイント | C37: =C16 -> 36000 | K37: =K35*K36 ->  | L37: =L35*L36 -> 0 | M37: =SUM(C37:L37) ->  | O37: =ROUNDUP(ROUNDDOWN(HokenKingaku*O35/100,0)/2,0) ->  | U37: =ROUNDDOWN(HokenKingaku*U35/100,0) -> 0
B38: 加重平均損害率 | M38: =M37/M$4*100 -> 
C40: 10年前 | D40: 9年前 | E40: 8年前 | F40: 7年前 | G40: 6年前 | H40: 5年前 | I40: 4年前 | J40: 3年前 | K40: 2年前 | L40: 1年前 | M40: 計 | O40: 保険料率 | P40: 保険限度 | Q40: 補償の下限 | R40: 危険段階 | S40: KEY | U40: 標準保険料率 | V40: KEY
B41: 損害率 | J41: =K35 ->  | K41: 0 | L41: 0 | O41: =VLOOKUP(S41,保険料率!D:E,2,FALSE) ->  | P41: =Hoken_HoshoGendo -> 80 | Q41: =Hoken_HoshoKagen -> 0 | R41: =損害率!N27 ->  | S41: =TEXT(P41,"00")&TEXT(Q41,"00")&TEXT(R41+10,"00") ->  | U41: =VLOOKUP(V41,保険料率!I:J,2,FALSE) -> 2.357 | V41: =TEXT(P41,"00")&TEXT(Q41,"00") -> 8000
B42: ウェイト | J42: =J3 -> 80 | K42: =K3 -> 90 | L42: =L3 -> 100 | O42: 保険料 | U42: 標準保険料
B43: ポイント | C43: =C22 -> 28000 | J43: =J41*J42 ->  | K43: =K41*K42 -> 0 | L43: =L41*L42 -> 0 | M43: =SUM(C43:L43) ->  | O43: =ROUNDUP(ROUNDDOWN(HokenKingaku*O41/100,0)/2,0) ->  | U43: =ROUNDDOWN(HokenKingaku*U41/100,0) -> 0
B44: 加重平均損害率 | M44: =M43/M$4*100 -> 

Sheet 損害率
A1: 危険段階区分 | B1: 加重平均損害率 | D1: 1年後 | E1: 2年後 | F1: 3年後 | I1: 危険段階区分 | J1: 加重平均損害率 | L1: 1年後 | M1: 2年後 | N1: 3年後
B2: 上限 | C2: 下限 | J2: 上限 | K2: 下限
A3: 10 | C3: 195 | D3: =IF('3年後見込'!$M$11>=損害率!$C3,A3,0) ->  | E3: =IF('3年後見込'!$M$17>=損害率!$C3,A3,0) ->  | F3: =IF('3年後見込'!$M$23>=損害率!$C3,A3,0) ->  | I3: 10 | K3: 195 | L3: =IF('3年後見込'!$M$32>=損害率!$C3,I3,0) ->  | M3: =IF('3年後見込'!$M$38>=損害率!$C3,I3,0) ->  | N3: =IF('3年後見込'!$M$44>=損害率!$C3,I3,0) -> 
A4: 9 | B4: 195 | C4: 185 | D4: =IF(AND(損害率!$B4>'3年後見込'!$M$11,'3年後見込'!$M$11>=損害率!$C4),A4,0) ->  | E4: =IF(AND(損害率!$B4>'3年後見込'!$M$17,'3年後見込'!$M$17>=損害率!$C4),A4,0) ->  | F4: =IF(AND(損害率!$B4>'3年後見込'!$M$23,'3年後見込'!$M$23>=損害率!$C4),A4,0) ->  | I4: 9 | J4: 195 | K4: 185 | L4: =IF(AND(損害率!$B4>'3年後見込'!$M$32,'3年後見込'!$M$32>=損害率!$C4),I4,0) ->  | M4: =IF(AND(損害率!$B4>'3年後見込'!$M$38,'3年後見込'!$M$38>=損害率!$C4),I4,0) ->  | N4: =IF(AND(損害率!$B4>'3年後見込'!$M$44,'3年後見込'!$M$44>=損害率!$C4),I4,0) -> 
A5: 8 | B5: 185 | C5: 175 | D5: =IF(AND(損害率!$B5>'3年後見込'!$M$11,'3年後見込'!$M$11>=損害率!$C5),A5,0) ->  | E5: =IF(AND(損害率!$B5>'3年後見込'!$M$17,'3年後見込'!$M$17>=損害率!$C5),A5,0) ->  | F5: =IF(AND(損害率!$B5>'3年後見込'!$M$23,'3年後見込'!$M$23>=損害率!$C5),A5,0) ->  | I5: 8 | J5: 185 | K5: 175 | L5: =IF(AND(損害率!$B5>'3年後見込'!$M$32,'3年後見込'!$M$32>=損害率!$C5),I5,0) ->  | M5: =IF(AND(損害率!$B5>'3年後見込'!$M$38,'3年後見込'!$M$38>=損害率!$C5),I5,0) ->  | N5: =IF(AND(損害率!$B5>'3年後見込'!$M$44,'3年後見込'!$M$44>=損害率!$C5),I5,0) -> 
A6: 7 | B6: 175 | C6: 165 | D6: =IF(AND(損害率!$B6>'3年後見込'!$M$11,'3年後見込'!$M$11>=損害率!$C6),A6,0) ->  | E6: =IF(AND(損害率!$B6>'3年後見込'!$M$17,'3年後見込'!$M$17>=損害率!$C6),A6,0) ->  | F6: =IF(AND(損害率!$B6>'3年後見込'!$M$23,'3年後見込'!$M$23>=損害率!$C6),A6,0) ->  | I6: 7 | J6: 175 | K6: 165 | L6: =IF(AND(損害率!$B6>'3年後見込'!$M$32,'3年後見込'!$M$32>=損害率!$C6),I6,0) ->  | M6: =IF(AND(損害率!$B6>'3年後見込'!$M$38,'3年後見込'!$M$38>=損害率!$C6),I6,0) ->  | N6: =IF(AND(損害率!$B6>'3年後見込'!$M$44,'3年後見込'!$M$44>=損害率!$C6),I6,0) -> 
A7: 6 | B7: 165 | C7: 155 | D7: =IF(AND(損害率!$B7>'3年後見込'!$M$11,'3年後見込'!$M$11>=損害率!$C7),A7,0) ->  | E7: =IF(AND(損害率!$B7>'3年後見込'!$M$17,'3年後見込'!$M$17>=損害率!$C7),A7,0) ->  | F7: =IF(AND(損害率!$B7>'3年後見込'!$M$23,'3年後見込'!$M$23>=損害率!$C7),A7,0) ->  | I7: 6 | J7: 165 | K7: 155 | L7: =IF(AND(損害率!$B7>'3年後見込'!$M$32,'3年後見込'!$M$32>=損害率!$C7),I7,0) ->  | M7: =IF(AND(損害率!$B7>'3年後見込'!$M$38,'3年後見込'!$M$38>=損害率!$C7),I7,0) ->  | N7: =IF(AND(損害率!$B7>'3年後見込'!$M$44,'3年後見込'!$M$44>=損害率!$C7),I7,0) -> 
A8: 5 | B8: 155 | C8: 145 | D8: =IF(AND(損害率!$B8>'3年後見込'!$M$11,'3年後見込'!$M$11>=損害率!$C8),A8,0) ->  | E8: =IF(AND(損害率!$B8>'3年後見込'!$M$17,'3年後見込'!$M$17>=損害率!$C8),A8,0) ->  | F8: =IF(AND(損害率!$B8>'3年後見込'!$M$23,'3年後見込'!$M$23>=損害率!$C8),A8,0) ->  | I8: 5 | J8: 155 | K8: 145 | L8: =IF(AND(損害率!$B8>'3年後見込'!$M$32,'3年後見込'!$M$32>=損害率!$C8),I8,0) ->  | M8: =IF(AND(損害率!$B8>'3年後見込'!$M$38,'3年後見込'!$M$38>=損害率!$C8),I8,0) ->  | N8: =IF(AND(損害率!$B8>'3年後見込'!$M$44,'3年後見込'!$M$44>=損害率!$C8),I8,0) -> 
A9: 4 | B9: 145 | C9: 135 | D9: =IF(AND(損害率!$B9>'3年後見込'!$M$11,'3年後見込'!$M$11>=損害率!$C9),A9,0) ->  | E9: =IF(AND(損害率!$B9>'3年後見込'!$M$17,'3年後見込'!$M$17>=損害率!$C9),A9,0) ->  | F9: =IF(AND(損害率!$B9>'3年後見込'!$M$23,'3年後見込'!$M$23>=損害率!$C9),A9,0) ->  | I9: 4 | J9: 145 | K9: 135 | L9: =IF(AND(損害率!$B9>'3年後見込'!$M$32,'3年後見込'!$M$32>=損害率!$C9),I9,0) ->  | M9: =IF(AND(損害率!$B9>'3年後見込'!$M$38,'3年後見込'!$M$38>=損害率!$C9),I9,0) ->  | N9: =IF(AND(損害率!$B9>'3年後見込'!$M$44,'3年後見込'!$M$44>=損害率!$C9),I9,0) -> 
A10: 3 | B10: 135 | C10: 125 | D10: =IF(AND(損害率!$B10>'3年後見込'!$M$11,'3年後見込'!$M$11>=損害率!$C10),A10,0) ->  | E10: =IF(AND(損害率!$B10>'3年後見込'!$M$17,'3年後見込'!$M$17>=損害率!$C10),A10,0) ->  | F10: =IF(AND(損害率!$B10>'3年後見込'!$M$23,'3年後見込'!$M$23>=損害率!$C10),A10,0) ->  | I10: 3 | J10: 135 | K10: 125 | L10: =IF(AND(損害率!$B10>'3年後見込'!$M$32,'3年後見込'!$M$32>=損害率!$C10),I10,0) ->  | M10: =IF(AND(損害率!$B10>'3年後見込'!$M$38,'3年後見込'!$M$38>=損害率!$C10),I10,0) ->  | N10: =IF(AND(損害率!$B10>'3年後見込'!$M$44,'3年後見込'!$M$44>=損害率!$C10),I10,0) -> 
A11: 2 | B11: 125 | C11: 115 | D11: =IF(AND(損害率!$B11>'3年後見込'!$M$11,'3年後見込'!$M$11>=損害率!$C11),A11,0) ->  | E11: =IF(AND(損害率!$B11>'3年後見込'!$M$17,'3年後見込'!$M$17>=損害率!$C11),A11,0) ->  | F11: =IF(AND(損害率!$B11>'3年後見込'!$M$23,'3年後見込'!$M$23>=損害率!$C11),A11,0) ->  | I11: 2 | J11: 125 | K11: 115 | L11: =IF(AND(損害率!$B11>'3年後見込'!$M$32,'3年後見込'!$M$32>=損害率!$C11),I11,0) ->  | M11: =IF(AND(損害率!$B11>'3年後見込'!$M$38,'3年後見込'!$M$38>=損害率!$C11),I11,0) ->  | N11: =IF(AND(損害率!$B11>'3年後見込'!$M$44,'3年後見込'!$M$44>=損害率!$C11),I11,0) -> 
A12: 1 | B12: 115 | C12: 105 | D12: =IF(AND(損害率!$B12>'3年後見込'!$M$11,'3年後見込'!$M$11>=損害率!$C12),A12,0) ->  | E12: =IF(AND(損害率!$B12>'3年後見込'!$M$17,'3年後見込'!$M$17>=損害率!$C12),A12,0) ->  | F12: =IF(AND(損害率!$B12>'3年後見込'!$M$23,'3年後見込'!$M$23>=損害率!$C12),A12,0) ->  | I12: 1 | J12: 115 | K12: 105 | L12: =IF(AND(損害率!$B12>'3年後見込'!$M$32,'3年後見込'!$M$32>=損害率!$C12),I12,0) ->  | M12: =IF(AND(損害率!$B12>'3年後見込'!$M$38,'3年後見込'!$M$38>=損害率!$C12),I12,0) ->  | N12: =IF(AND(損害率!$B12>'3年後見込'!$M$44,'3年後見込'!$M$44>=損害率!$C12),I12,0) -> 
A13: 0 | B13: 105 | C13: 95 | D13: =IF(AND(損害率!$B13>'3年後見込'!$M$11,'3年後見込'!$M$11>=損害率!$C13),A13,0) ->  | E13: =IF(AND(損害率!$B13>'3年後見込'!$M$17,'3年後見込'!$M$17>=損害率!$C13),A13,0) ->  | F13: =IF(AND(損害率!$B13>'3年後見込'!$M$23,'3年後見込'!$M$23>=損害率!$C13),A13,0) ->  | I13: 0 | J13: 105 | K13: 95 | L13: =IF(AND(損害率!$B13>'3年後見込'!$M$32,'3年後見込'!$M$32>=損害率!$C13),I13,0) ->  | M13: =IF(AND(損害率!$B13>'3年後見込'!$M$38,'3年後見込'!$M$38>=損害率!$C13),I13,0) ->  | N13: =IF(AND(損害率!$B13>'3年後見込'!$M$44,'3年後見込'!$M$44>=損害率!$C13),I13,0) -> 
A14: -1 | B14: 95 | C14: 85 | D14: =IF(AND(損害率!$B14>'3年後見込'!$M$11,'3年後見込'!$M$11>=損害率!$C14),A14,0) ->  | E14: =IF(AND(損害率!$B14>'3年後見込'!$M$17,'3年後見込'!$M$17>=損害率!$C14),A14,0) ->  | F14: =IF(AND(損害率!$B14>'3年後見込'!$M$23,'3年後見込'!$M$23>=損害率!$C14),A14,0) ->  | I14: -1 | J14: 95 | K14: 85 | L14: =IF(AND(損害率!$B14>'3年後見込'!$M$32,'3年後見込'!$M$32>=損害率!$C14),I14,0) ->  | M14: =IF(AND(損害率!$B14>'3年後見込'!$M$38,'3年後見込'!$M$38>=損害率!$C14),I14,0) ->  | N14: =IF(AND(損害率!$B14>'3年後見込'!$M$44,'3年後見込'!$M$44>=損害率!$C14),I14,0) -> 
A15: -2 | B15: 85 | C15: 75 | D15: =IF(AND(損害率!$B15>'3年後見込'!$M$11,'3年後見込'!$M$11>=損害率!$C15),A15,0) ->  | E15: =IF(AND(損害率!$B15>'3年後見込'!$M$17,'3年後見込'!$M$17>=損害率!$C15),A15,0) ->  | F15: =IF(AND(損害率!$B15>'3年後見込'!$M$23,'3年後見込'!$M$23>=損害率!$C15),A15,0) ->  | I15: -2 | J15: 85 | K15: 75 | L15: =IF(AND(損害率!$B15>'3年後見込'!$M$32,'3年後見込'!$M$32>=損害率!$C15),I15,0) ->  | M15: =IF(AND(損害率!$B15>'3年後見込'!$M$38,'3年後見込'!$M$38>=損害率!$C15),I15,0) ->  | N15: =IF(AND(損害率!$B15>'3年後見込'!$M$44,'3年後見込'!$M$44>=損害率!$C15),I15,0) -> 
A16: -3 | B16: 75 | C16: 65 | D16: =IF(AND(損害率!$B16>'3年後見込'!$M$11,'3年後見込'!$M$11>=損害率!$C16),A16,0) ->  | E16: =IF(AND(損害率!$B16>'3年後見込'!$M$17,'3年後見込'!$M$17>=損害率!$C16),A16,0) ->  | F16: =IF(AND(損害率!$B16>'3年後見込'!$M$23,'3年後見込'!$M$23>=損害率!$C16),A16,0) ->  | I16: -3 | J16: 75 | K16: 65 | L16: =IF(AND(損害率!$B16>'3年後見込'!$M$32,'3年後見込'!$M$32>=損害率!$C16),I16,0) ->  | M16: =IF(AND(損害率!$B16>'3年後見込'!$M$38,'3年後見込'!$M$38>=損害率!$C16),I16,0) ->  | N16: =IF(AND(損害率!$B16>'3年後見込'!$M$44,'3年後見込'!$M$44>=損害率!$C16),I16,0) -> 
A17: -4 | B17: 65 | C17: 55 | D17: =IF(AND(損害率!$B17>'3年後見込'!$M$11,'3年後見込'!$M$11>=損害率!$C17),A17,0) ->  | E17: =IF(AND(損害率!$B17>'3年後見込'!$M$17,'3年後見込'!$M$17>=損害率!$C17),A17,0) ->  | F17: =IF(AND(損害率!$B17>'3年後見込'!$M$23,'3年後見込'!$M$23>=損害率!$C17),A17,0) ->  | I17: -4 | J17: 65 | K17: 55 | L17: =IF(AND(損害率!$B17>'3年後見込'!$M$32,'3年後見込'!$M$32>=損害率!$C17),I17,0) ->  | M17: =IF(AND(損害率!$B17>'3年後見込'!$M$38,'3年後見込'!$M$38>=損害率!$C17),I17,0) ->  | N17: =IF(AND(損害率!$B17>'3年後見込'!$M$44,'3年後見込'!$M$44>=損害率!$C17),I17,0) -> 
A18: -5 | B18: 55 | C18: 45 | D18: =IF(AND(損害率!$B18>'3年後見込'!$M$11,'3年後見込'!$M$11>=損害率!$C18),A18,0) ->  | E18: =IF(AND(損害率!$B18>'3年後見込'!$M$17,'3年後見込'!$M$17>=損害率!$C18),A18,0) ->  | F18: =IF(AND(損害率!$B18>'3年後見込'!$M$23,'3年後見込'!$M$23>=損害率!$C18),A18,0) ->  | I18: -5 | J18: 55 | K18: 45 | L18: =IF(AND(損害率!$B18>'3年後見込'!$M$32,'3年後見込'!$M$32>=損害率!$C18),I18,0) ->  | M18: =IF(AND(損害率!$B18>'3年後見込'!$M$38,'3年後見込'!$M$38>=損害率!$C18),I18,0) ->  | N18: =IF(AND(損害率!$B18>'3年後見込'!$M$44,'3年後見込'!$M$44>=損害率!$C18),I18,0) -> 
A19: -6 | B19: 45 | C19: 35 | D19: =IF(AND(損害率!$B19>'3年後見込'!$M$11,'3年後見込'!$M$11>=損害率!$C19),A19,0) ->  | E19: =IF(AND(損害率!$B19>'3年後見込'!$M$17,'3年後見込'!$M$17>=損害率!$C19),A19,0) ->  | F19: =IF(AND(損害率!$B19>'3年後見込'!$M$23,'3年後見込'!$M$23>=損害率!$C19),A19,0) ->  | I19: -6 | J19: 45 | K19: 35 | L19: =IF(AND(損害率!$B19>'3年後見込'!$M$32,'3年後見込'!$M$32>=損害率!$C19),I19,0) ->  | M19: =IF(AND(損害率!$B19>'3年後見込'!$M$38,'3年後見込'!$M$38>=損害率!$C19),I19,0) ->  | N19: =IF(AND(損害率!$B19>'3年後見込'!$M$44,'3年後見込'!$M$44>=損害率!$C19),I19,0) -> 
A20: -7 | B20: 35 | C20: 25 | D20: =IF(AND(損害率!$B20>'3年後見込'!$M$11,'3年後見込'!$M$11>=損害率!$C20),A20,0) ->  | E20: =IF(AND(損害率!$B20>'3年後見込'!$M$17,'3年後見込'!$M$17>=損害率!$C20),A20,0) ->  | F20: =IF(AND(損害率!$B20>'3年後見込'!$M$23,'3年後見込'!$M$23>=損害率!$C20),A20,0) ->  | I20: -7 | J20: 35 | K20: 25 | L20: =IF(AND(損害率!$B20>'3年後見込'!$M$32,'3年後見込'!$M$32>=損害率!$C20),I20,0) ->  | M20: =IF(AND(損害率!$B20>'3年後見込'!$M$38,'3年後見込'!$M$38>=損害率!$C20),I20,0) ->  | N20: =IF(AND(損害率!$B20>'3年後見込'!$M$44,'3年後見込'!$M$44>=損害率!$C20),I20,0) -> 
A21: -8 | B21: 25 | C21: 15 | D21: =IF(AND(損害率!$B21>'3年後見込'!$M$11,'3年後見込'!$M$11>=損害率!$C21),A21,0) ->  | E21: =IF(AND(損害率!$B21>'3年後見込'!$M$17,'3年後見込'!$M$17>=損害率!$C21),A21,0) ->  | F21: =IF(AND(損害率!$B21>'3年後見込'!$M$23,'3年後見込'!$M$23>=損害率!$C21),A21,0) ->  | I21: -8 | J21: 25 | K21: 15 | L21: =IF(AND(損害率!$B21>'3年後見込'!$M$32,'3年後見込'!$M$32>=損害率!$C21),I21,0) ->  | M21: =IF(AND(損害率!$B21>'3年後見込'!$M$38,'3年後見込'!$M$38>=損害率!$C21),I21,0) ->  | N21: =IF(AND(損害率!$B21>'3年後見込'!$M$44,'3年後見込'!$M$44>=損害率!$C21),I21,0) -> 
A22: -9 | B22: 15 | C22: 5 | D22: =IF(AND(損害率!$B22>'3年後見込'!$M$11,'3年後見込'!$M$11>=損害率!$C22),A22,0) ->  | E22: =IF(AND(損害率!$B22>'3年後見込'!$M$17,'3年後見込'!$M$17>=損害率!$C22),A22,0) ->  | F22: =IF(AND(損害率!$B22>'3年後見込'!$M$23,'3年後見込'!$M$23>=損害率!$C22),A22,0) ->  | I22: -9 | J22: 15 | K22: 5 | L22: =IF(AND(損害率!$B22>'3年後見込'!$M$32,'3年後見込'!$M$32>=損害率!$C22),I22,0) ->  | M22: =IF(AND(損害率!$B22>'3年後見込'!$M$38,'3年後見込'!$M$38>=損害率!$C22),I22,0) ->  | N22: =IF(AND(損害率!$B22>'3年後見込'!$M$44,'3年後見込'!$M$44>=損害率!$C22),I22,0) -> 
A23: -10 | B23: 5 | C23: 0 | D23: =IF(AND(損害率!$B23>'3年後見込'!$M$11,'3年後見込'!$M$11>=損害率!$C23),A23,0) ->  | E23: =IF(AND(損害率!$B23>'3年後見込'!$M$17,'3年後見込'!$M$17>=損害率!$C23),A23,0) ->  | F23: =IF(AND(損害率!$B23>'3年後見込'!$M$23,'3年後見込'!$M$23>=損害率!$C23),A23,0) ->  | I23: -10 | J23: 5 | K23: 0 | L23: =IF(AND(損害率!$B23>'3年後見込'!$M$32,'3年後見込'!$M$32>=損害率!$C23),I23,0) ->  | M23: =IF(AND(損害率!$B23>'3年後見込'!$M$38,'3年後見込'!$M$38>=損害率!$C23),I23,0) ->  | N23: =IF(AND(損害率!$B23>'3年後見込'!$M$44,'3年後見込'!$M$44>=損害率!$C23),I23,0) -> 
A24: ダイレクト適用危険段階区分 | D24: =SUM(D3:D23) ->  | E24: =SUM(E3:E23) ->  | F24: =SUM(F3:F23) ->  | I24: ダイレクト適用危険段階区分 | L24: =SUM(L3:L23) ->  | M24: =SUM(M3:M23) ->  | N24: =SUM(N3:N23) -> 
A27: 適用危険段階区分 | C27: =KikenDankai -> 0 | D27: =IF(AND(GekihenKanwaSochi_Now="あり",ZennenSeikyuUmu11="なし"),IF(DirectKikenDankai_SeikyuSuru1YearAfter>KikenDankai_Now,KikenDankai_Now,IF(KikenDankai_Now>DirectKikenDankai_SeikyuSuru1YearAfter,KikenDankai_Now-1,DirectKikenDankai_SeikyuSuru1YearAfter)),IF(DirectKikenDankai_SeikyuSuru1YearAfter>KikenDankai_Now+3,KikenDankai_Now+3,DirectKikenDankai_SeikyuSuru1YearAfter)) ->  | E27: =IF(AND(GekihenKanwaSochi_SeikyuSuru1YearAfter="あり",ZennenSeikyuUmu12="なし"),IF(DirectKikenDankai_SeikyuSuru2YearAfter>KikenDankai_SeikyuSuru1YearAfter,KikenDankai_SeikyuSuru1YearAfter,IF(KikenDankai_SeikyuSuru1YearAfter>DirectKikenDankai_SeikyuSuru2YearAfter,KikenDankai_SeikyuSuru1YearAfter-1,DirectKikenDankai_SeikyuSuru2YearAfter)),IF(DirectKikenDankai_SeikyuSuru2YearAfter>KikenDankai_SeikyuSuru1YearAfter+3,KikenDankai_SeikyuSuru1YearAfter+3,DirectKikenDankai_SeikyuSuru2YearAfter)) ->  | F27: =IF(AND(GekihenKanwaSochi_SeikyuSuru2YearAfter="あり",ZennenSeikyuUmu13="なし"),IF(DirectKikenDankai_SeikyuSuru3YearAfter>KikenDankai_SeikyuSuru2YearAfter,KikenDankai_SeikyuSuru2YearAfter,IF(KikenDankai_SeikyuSuru2YearAfter>DirectKikenDankai_SeikyuSuru3YearAfter,KikenDankai_SeikyuSuru2YearAfter-1,DirectKikenDankai_SeikyuSuru3YearAfter)),IF(DirectKikenDankai_SeikyuSuru3YearAfter>KikenDankai_SeikyuSuru2YearAfter+3,KikenDankai_SeikyuSuru2YearAfter+3,DirectKikenDankai_SeikyuSuru3YearAfter)) ->  | I27: 適用危険段階区分 | K27: =KikenDankai_Now -> 0 | L27: =IF(AND(GekihenKanwaSochi_Now2="あり",ZennenSeikyuUmu21="なし"),IF(DirectKikenDankai_SeikyuShinai1YearAfter>KikenDankai_Now2,KikenDankai_Now2,IF(KikenDankai_Now2>DirectKikenDankai_SeikyuShinai1YearAfter,KikenDankai_Now2-1,DirectKikenDankai_SeikyuShinai1YearAfter)),IF(DirectKikenDankai_SeikyuShinai1YearAfter>KikenDankai_Now2+3,KikenDankai_Now2+3,DirectKikenDankai_SeikyuShinai1YearAfter)) ->  | M27: =IF(AND(GekihenKanwaSochi_SeikyuShinai1YearAfter="あり",ZennenSeikyuUmu22="なし"),IF(DirectKikenDankai_SeikyuShinai2YearAfter>KikenDankai_SeikyuShinai1YearAfter,KikenDankai_SeikyuShinai1YearAfter,IF(KikenDankai_SeikyuShinai1YearAfter>DirectKikenDankai_SeikyuShinai2YearAfter,KikenDankai_SeikyuShinai1YearAfter-1,DirectKikenDankai_SeikyuShinai2YearAfter)),IF(DirectKikenDankai_SeikyuShinai2YearAfter>KikenDankai_SeikyuShinai1YearAfter+3,KikenDankai_SeikyuShinai1YearAfter+3,DirectKikenDankai_SeikyuShinai2YearAfter)) ->  | N27: =IF(AND(GekihenKanwaSochi_SeikyuShinai2YearAfter="あり",ZennenSeikyuUmu23="なし"),IF(DirectKikenDankai_SeikyuShinai3YearAfter>KikenDankai_SeikyuShinai2YearAfter,KikenDankai_SeikyuShinai2YearAfter,IF(KikenDankai_SeikyuShinai2YearAfter>DirectKikenDankai_SeikyuShinai3YearAfter,KikenDankai_SeikyuShinai2YearAfter-1,DirectKikenDankai_SeikyuShinai3YearAfter)),IF(DirectKikenDankai_SeikyuShinai3YearAfter>KikenDankai_SeikyuShinai2YearAfter+3,KikenDankai_SeikyuShinai2YearAfter+3,DirectKikenDankai_SeikyuShinai3YearAfter)) -> 
A28: 激変緩和措置適用 | C28: =IF(GekihenKanwaSochiTekiyo="激変緩和措置適用なし","なし","あり") -> なし | D28: =IF(AND(GekihenKanwaSochi_Now="あり",KikenDankai_Now=-10),"なし",IF(AND(GekihenKanwaSochi_Now="なし",DirectKikenDankai_SeikyuSuru1YearAfter>KikenDankai_SeikyuSuru1YearAfter),"あり",GekihenKanwaSochi_Now)) ->  | E28: =IF(AND(GekihenKanwaSochi_SeikyuSuru1YearAfter="あり",KikenDankai_SeikyuSuru1YearAfter=-10),"なし",IF(AND(GekihenKanwaSochi_SeikyuSuru1YearAfter="なし",DirectKikenDankai_SeikyuSuru2YearAfter>KikenDankai_SeikyuSuru2YearAfter),"あり",GekihenKanwaSochi_SeikyuSuru1YearAfter)) ->  | F28: =IF(AND(GekihenKanwaSochi_SeikyuSuru2YearAfter="あり",KikenDankai_SeikyuSuru2YearAfter=-10),"なし",IF(AND(GekihenKanwaSochi_SeikyuSuru2YearAfter="なし",DirectKikenDankai_SeikyuSuru3YearAfter>KikenDankai_SeikyuSuru3YearAfter),"あり",GekihenKanwaSochi_SeikyuSuru2YearAfter)) ->  | I28: 激変緩和措置適用 | K28: =IF(GekihenKanwaSochiTekiyo="激変緩和措置適用なし","なし","あり") -> なし | L28: =IF(AND(GekihenKanwaSochi_Now2="あり",KikenDankai_Now2=-10),"なし",IF(AND(GekihenKanwaSochi_Now2="なし",DirectKikenDankai_SeikyuShinai1YearAfter>KikenDankai_SeikyuShinai1YearAfter),"あり",GekihenKanwaSochi_Now2)) ->  | M28: =IF(AND(GekihenKanwaSochi_SeikyuShinai1YearAfter="あり",KikenDankai_SeikyuShinai1YearAfter=-10),"なし",IF(AND(GekihenKanwaSochi_SeikyuShinai1YearAfter="なし",DirectKikenDankai_SeikyuShinai2YearAfter>KikenDankai_SeikyuShinai2YearAfter),"あり",GekihenKanwaSochi_SeikyuShinai1YearAfter)) ->  | N28: =IF(AND(GekihenKanwaSochi_SeikyuShinai2YearAfter="あり",KikenDankai_SeikyuShinai2YearAfter=-10),"なし",IF(AND(GekihenKanwaSochi_SeikyuShinai2YearAfter="なし",DirectKikenDankai_SeikyuShinai3YearAfter>KikenDankai_SeikyuShinai3YearAfter),"あり",GekihenKanwaSochi_SeikyuShinai2YearAfter)) -> 
A29: 前年度保険金請求 | D29: あり | E29: なし | F29: なし | I29: 前年度保険金請求 | L29: なし | M29: なし | N29: なし

Sheet 保険料率
A1: 保険限度 | B1: 補償の下限 | C1: 危険段階 | D1: KEY | E1: 危険段階別保険料率 | G1: 保険限度 | H1: 補償の下限 | I1: KEY | J1: 保険料標準率 | L1: 2024/12/03更新
A2: 90 | B2: 0 | C2: 10 | D2: =TEXT(A2,"00")&TEXT(B2,"00")&TEXT(C2+10,"00") -> 900020 | E2: 9.322 | G2: 90 | H2: 0 | I2: =TEXT(G2,"00")&TEXT(H2,"00") -> 9000 | J2: 4.37
A3: 90 | B3: 0 | C3: 9 | D3: 900019 | E3: 6.299 | G3: 90 | H3: 50 | I3: 9050 | J3: 4.173
A4: 90 | B4: 0 | C4: 8 | D4: 900018 | E4: 6.085 | G4: 90 | H4: 60 | I4: 9060 | J4: 3.944
A5: 90 | B5: 0 | C5: 7 | D5: 900017 | E5: 5.871 | G5: 90 | H5: 70 | I5: 9070 | J5: 3.463
A6: 90 | B6: 0 | C6: 6 | D6: 900016 | E6: 5.656 | G6: 88 | H6: 0 | I6: 8800 | J6: 3.865
A7: 90 | B7: 0 | C7: 5 | D7: 900015 | E7: 5.442 | G7: 88 | H7: 50 | I7: 8850 | J7: 3.661
A8: 90 | B8: 0 | C8: 4 | D8: 900014 | E8: 5.228 | G8: 88 | H8: 60 | I8: 8860 | J8: 3.426
A9: 90 | B9: 0 | C9: 3 | D9: 900013 | E9: 5.013 | G9: 88 | H9: 70 | I9: 8870 | J9: 2.931
A10: 90 | B10: 0 | C10: 2 | D10: 900012 | E10: 4.799 | G10: 85 | H10: 0 | I10: 8500 | J10: 3.211
A11: 90 | B11: 0 | C11: 1 | D11: 900011 | E11: 4.584 | G11: 85 | H11: 50 | I11: 8550 | J11: 2.997
A12: 90 | B12: 0 | C12: 0 | D12: 900010 | E12: 4.37 | G12: 85 | H12: 60 | I12: 8560 | J12: 2.751
A13: 90 | B13: 0 | C13: -1 | D13: 900009 | E13: 4.156 | G13: 85 | H13: 70 | I13: 8570 | J13: 2.235
A14: 90 | B14: 0 | C14: -2 | D14: 900008 | E14: 3.941 | G14: 83 | H14: 0 | I14: 8300 | J14: 2.837
A15: 90 | B15: 0 | C15: -3 | D15: 900007 | E15: 3.727 | G15: 83 | H15: 50 | I15: 8350 | J15: 2.615
A16: 90 | B16: 0 | C16: -4 | D16: 900006 | E16: 3.512 | G16: 83 | H16: 60 | I16: 8360 | J16: 2.363
A17: 90 | B17: 0 | C17: -5 | D17: 900005 | E17: 3.298 | G17: 83 | H17: 70 | I17: 8370 | J17: 1.83
A18: 90 | B18: 0 | C18: -6 | D18: 900004 | E18: 3.084 | G18: 80 | H18: 0 | I18: 8000 | J18: 2.357
A19: 90 | B19: 0 | C19: -7 | D19: 900003 | E19: 2.869 | G19: 80 | H19: 50 | I19: 8050 | J19: 2.124
A20: 90 | B20: 0 | C20: -8 | D20: 900002 | E20: 2.655 | G20: 80 | H20: 60 | I20: 8060 | J20: 1.86
A21: 90 | B21: 0 | C21: -9 | D21: 900001 | E21: 2.441 | G21: 80 | H21: 70 | I21: 8070 | J21: 1.304
A22: 90 | B22: 0 | C22: -10 | D22: 900000 | E22: 2.185 | G22: 78 | H22: 0 | I22: 7800 | J22: 2.087
A23: 90 | B23: 50 | C23: 10 | D23: 905020 | E23: 8.902 | G23: 78 | H23: 50 | I23: 7850 | J23: 1.847
A24: 90 | B24: 50 | C24: 9 | D24: 905019 | E24: 6.015 | G24: 78 | H24: 60 | I24: 7860 | J24: 1.576
A25: 90 | B25: 50 | C25: 8 | D25: 905018 | E25: 5.811 | G25: 78 | H25: 70 | I25: 7870 | J25: 1.001
A26: 90 | B26: 50 | C26: 7 | D26: 905017 | E26: 5.606 | G26: 75 | H26: 0 | I26: 7500 | J26: 1.738
A27: 90 | B27: 50 | C27: 6 | D27: 905016 | E27: 5.401 | G27: 75 | H27: 50 | I27: 7550 | J27: 1.484
A28: 90 | B28: 50 | C28: 5 | D28: 905015 | E28: 5.197 | G28: 75 | H28: 60 | I28: 7560 | J28: 1.206
A29: 90 | B29: 50 | C29: 4 | D29: 905014 | E29: 4.992 | G29: 75 | H29: 70 | I29: 7570 | J29: 0.598
A30: 90 | B30: 50 | C30: 3 | D30: 905013 | E30: 4.787 | G30: 70 | H30: 0 | I30: 7000 | J30: 1.291
A31: 90 | B31: 50 | C31: 2 | D31: 905012 | E31: 4.582 | G31: 70 | H31: 50 | I31: 7050 | J31: 1.022
A32: 90 | B32: 50 | C32: 1 | D32: 905011 | E32: 4.378 | G32: 70 | H32: 60 | I32: 7060 | J32: 0.714
A33: 90 | B33: 50 | C33: 0 | D33: 905010 | E33: 4.173 | G33: 65 | H33: 0 | I33: 6500 | J33: 0.976
A34: 90 | B34: 50 | C34: -1 | D34: 905009 | E34: 3.968 | G34: 65 | H34: 50 | I34: 6550 | J34: 0.678
A35: 90 | B35: 50 | C35: -2 | D35: 905008 | E35: 3.764 | G35: 65 | H35: 60 | I35: 6560 | J35: 0.34
A36: 90 | B36: 50 | C36: -3 | D36: 905007 | E36: 3.559 | G36: 60 | H36: 0 | I36: 6000 | J36: 0.731
A37: 90 | B37: 50 | C37: -4 | D37: 905006 | E37: 3.354 | G37: 60 | H37: 50 | I37: 6050 | J37: 0.409
A38: 90 | B38: 50 | C38: -5 | D38: 905005 | E38: 3.149 | G38: 55 | H38: 0 | I38: 5500 | J38: 0.551
A39: 90 | B39: 50 | C39: -6 | D39: 905004 | E39: 2.945 | G39: 55 | H39: 50 | I39: 5550 | J39: 0.192
A40: 90 | B40: 50 | C40: -7 | D40: 905003 | E40: 2.74 | G40: 50 | H40: 0 | I40: 5000 | J40: 0.434
A41: 90 | B41: 50 | C41: -8 | D41: 905002 | E41: 2.535
A42: 90 | B42: 50 | C42: -9 | D42: 905001 | E42: 2.331
A43: 90 | B43: 50 | C43: -10 | D43: 905000 | E43: 2.087
A44: 90 | B44: 60 | C44: 10 | D44: 906020 | E44: 8.413
A45: 90 | B45: 60 | C45: 9 | D45: 906019 | E45: 5.685
A46: 90 | B46: 60 | C46: 8 | D46: 906018 | E46: 5.492
A47: 90 | B47: 60 | C47: 7 | D47: 906017 | E47: 5.298
A48: 90 | B48: 60 | C48: 6 | D48: 906016 | E48: 5.105
A49: 90 | B49: 60 | C49: 5 | D49: 906015 | E49: 4.911
A50: 90 | B50: 60 | C50: 4 | D50: 906014 | E50: 4.718
A51: 90 | B51: 60 | C51: 3 | D51: 906013 | E51: 4.524
A52: 90 | B52: 60 | C52: 2 | D52: 906012 | E52: 4.331
A53: 90 | B53: 60 | C53: 1 | D53: 906011 | E53: 4.137
A54: 90 | B54: 60 | C54: 0 | D54: 906010 | E54: 3.944
A55: 90 | B55: 60 | C55: -1 | D55: 906009 | E55: 3.751
A56: 90 | B56: 60 | C56: -2 | D56: 906008 | E56: 3.557
A57: 90 | B57: 60 | C57: -3 | D57: 906007 | E57: 3.364
A58: 90 | B58: 60 | C58: -4 | D58: 906006 | E58: 3.17
A59: 90 | B59: 60 | C59: -5 | D59: 906005 | E59: 2.977
A60: 90 | B60: 60 | C60: -6 | D60: 906004 | E60: 2.783
A61: 90 | B61: 60 | C61: -7 | D61: 906003 | E61: 2.59
A62: 90 | B62: 60 | C62: -8 | D62: 906002 | E62: 2.396
A63: 90 | B63: 60 | C63: -9 | D63: 906001 | E63: 2.203
A64: 90 | B64: 60 | C64: -10 | D64: 906000 | E64: 1.972
A65: 90 | B65: 70 | C65: 10 | D65: 907020 | E65: 7.387
A66: 90 | B66: 70 | C66: 9 | D66: =TEXT(A66,"00")&TEXT(B66,"00")&TEXT(C66+10,"00") -> 907019 | E66: 4.992
A67: 90 | B67: 70 | C67: 8 | D67: 907018 | E67: 4.822
A68: 90 | B68: 70 | C68: 7 | D68: 907017 | E68: 4.652
A69: 90 | B69: 70 | C69: 6 | D69: 907016 | E69: 4.482
A70: 90 | B70: 70 | C70: 5 | D70: 907015 | E70: 4.312
A71: 90 | B71: 70 | C71: 4 | D71: 907014 | E71: 4.143
A72: 90 | B72: 70 | C72: 3 | D72: 907013 | E72: 3.973
A73: 90 | B73: 70 | C73: 2 | D73: 907012 | E73: 3.803
A74: 90 | B74: 70 | C74: 1 | D74: 907011 | E74: 3.633
A75: 90 | B75: 70 | C75: 0 | D75: 907010 | E75: 3.463
A76: 90 | B76: 70 | C76: -1 | D76: 907009 | E76: 3.293
A77: 90 | B77: 70 | C77: -2 | D77: 907008 | E77: 3.123
A78: 90 | B78: 70 | C78: -3 | D78: 907007 | E78: 2.953
A79: 90 | B79: 70 | C79: -4 | D79: 907006 | E79: 2.783
A80: 90 | B80: 70 | C80: -5 | D80: 907005 | E80: 2.614
A81: 90 | B81: 70 | C81: -6 | D81: 907004 | E81: 2.444
A82: 90 | B82: 70 | C82: -7 | D82: 907003 | E82: 2.274
A83: 90 | B83: 70 | C83: -8 | D83: 907002 | E83: 2.104
A84: 90 | B84: 70 | C84: -9 | D84: 907001 | E84: 1.934
A85: 90 | B85: 70 | C85: -10 | D85: 907000 | E85: 1.732
A86: 88 | B86: 0 | C86: 10 | D86: 880020 | E86: 8.245
A87: 88 | B87: 0 | C87: 9 | D87: 880019 | E87: 5.571
A88: 88 | B88: 0 | C88: 8 | D88: 880018 | E88: 5.382
A89: 88 | B89: 0 | C89: 7 | D89: 880017 | E89: 5.192
A90: 88 | B90: 0 | C90: 6 | D90: 880016 | E90: 5.003
A91: 88 | B91: 0 | C91: 5 | D91: 880015 | E91: 4.813
A92: 88 | B92: 0 | C92: 4 | D92: 880014 | E92: 4.623
A93: 88 | B93: 0 | C93: 3 | D93: 880013 | E93: 4.434
A94: 88 | B94: 0 | C94: 2 | D94: 880012 | E94: 4.244
A95: 88 | B95: 0 | C95: 1 | D95: 880011 | E95: 4.055
A96: 88 | B96: 0 | C96: 0 | D96: 880010 | E96: 3.865
A97: 88 | B97: 0 | C97: -1 | D97: 880009 | E97: 3.675
A98: 88 | B98: 0 | C98: -2 | D98: 880008 | E98: 3.486
A99: 88 | B99: 0 | C99: -3 | D99: 880007 | E99: 3.296
A100: 88 | B100: 0 | C100: -4 | D100: 880006 | E100: 3.107
A101: 88 | B101: 0 | C101: -5 | D101: 880005 | E101: 2.917
A102: 88 | B102: 0 | C102: -6 | D102: 880004 | E102: 2.727
A103: 88 | B103: 0 | C103: -7 | D103: 880003 | E103: 2.538
A104: 88 | B104: 0 | C104: -8 | D104: 880002 | E104: 2.348
A105: 88 | B105: 0 | C105: -9 | D105: 880001 | E105: 2.159
A106: 88 | B106: 0 | C106: -10 | D106: 880000 | E106: 1.933
A107: 88 | B107: 50 | C107: 10 | D107: 885020 | E107: 7.81
A108: 88 | B108: 50 | C108: 9 | D108: 885019 | E108: 5.277
A109: 88 | B109: 50 | C109: 8 | D109: 885018 | E109: 5.098
A110: 88 | B110: 50 | C110: 7 | D110: 885017 | E110: 4.918
A111: 88 | B111: 50 | C111: 6 | D111: 885016 | E111: 4.739
A112: 88 | B112: 50 | C112: 5 | D112: 885015 | E112: 4.559
A113: 88 | B113: 50 | C113: 4 | D113: 885014 | E113: 4.379
A114: 88 | B114: 50 | C114: 3 | D114: 885013 | E114: 4.2
A115: 88 | B115: 50 | C115: 2 | D115: 885012 | E115: 4.02
A116: 88 | B116: 50 | C116: 1 | D116: 885011 | E116: 3.841
A117: 88 | B117: 50 | C117: 0 | D117: 885010 | E117: 3.661
A118: 88 | B118: 50 | C118: -1 | D118: 885009 | E118: 3.481
A119: 88 | B119: 50 | C119: -2 | D119: 885008 | E119: 3.302
A120: 88 | B120: 50 | C120: -3 | D120: 885007 | E120: 3.122
A121: 88 | B121: 50 | C121: -4 | D121: 885006 | E121: 2.943
A122: 88 | B122: 50 | C122: -5 | D122: 885005 | E122: 2.763
A123: 88 | B123: 50 | C123: -6 | D123: 885004 | E123: 2.583
A124: 88 | B124: 50 | C124: -7 | D124: 885003 | E124: 2.404
A125: 88 | B125: 50 | C125: -8 | D125: 885002 | E125: 2.224
A126: 88 | B126: 50 | C126: -9 | D126: 885001 | E126: 2.045
A127: 88 | B127: 50 | C127: -10 | D127: 885000 | E127: 1.831
A128: 88 | B128: 60 | C128: 10 | D128: 886020 | E128: 7.308
A129: 88 | B129: 60 | C129: 9 | D129: 886019 | E129: 4.939
A130: 88 | B130: 60 | C130: 8 | D130: =TEXT(A130,"00")&TEXT(B130,"00")&TEXT(C130+10,"00") -> 886018 | E130: 4.771
A131: 88 | B131: 60 | C131: 7 | D131: 886017 | E131: 4.602
A132: 88 | B132: 60 | C132: 6 | D132: 886016 | E132: 4.434
A133: 88 | B133: 60 | C133: 5 | D133: 886015 | E133: 4.266
A134: 88 | B134: 60 | C134: 4 | D134: 886014 | E134: 4.098
A135: 88 | B135: 60 | C135: 3 | D135: 886013 | E135: 3.93
A136: 88 | B136: 60 | C136: 2 | D136: 886012 | E136: 3.762
A137: 88 | B137: 60 | C137: 1 | D137: 886011 | E137: 3.594
A138: 88 | B138: 60 | C138: 0 | D138: 886010 | E138: 3.426
A139: 88 | B139: 60 | C139: -1 | D139: 886009 | E139: 3.258
A140: 88 | B140: 60 | C140: -2 | D140: 886008 | E140: 3.09
A141: 88 | B141: 60 | C141: -3 | D141: 886007 | E141: 2.922
A142: 88 | B142: 60 | C142: -4 | D142: 886006 | E142: 2.754
A143: 88 | B143: 60 | C143: -5 | D143: 886005 | E143: 2.586
A144: 88 | B144: 60 | C144: -6 | D144: 886004 | E144: 2.418
A145: 88 | B145: 60 | C145: -7 | D145: 886003 | E145: 2.25
A146: 88 | B146: 60 | C146: -8 | D146: 886002 | E146: 2.081
A147: 88 | B147: 60 | C147: -9 | D147: 886001 | E147: 1.913
A148: 88 | B148: 60 | C148: -10 | D148: 886000 | E148: 1.713
A149: 88 | B149: 70 | C149: 10 | D149: 887020 | E149: 6.252
A150: 88 | B150: 70 | C150: 9 | D150: 887019 | E150: 4.225
A151: 88 | B151: 70 | C151: 8 | D151: 887018 | E151: 4.081
A152: 88 | B152: 70 | C152: 7 | D152: 887017 | E152: 3.938
A153: 88 | B153: 70 | C153: 6 | D153: 887016 | E153: 3.794
A154: 88 | B154: 70 | C154: 5 | D154: 887015 | E154: 3.65
A155: 88 | B155: 70 | C155: 4 | D155: 887014 | E155: 3.506
A156: 88 | B156: 70 | C156: 3 | D156: 887013 | E156: 3.362
A157: 88 | B157: 70 | C157: 2 | D157: 887012 | E157: 3.219
A158: 88 | B158: 70 | C158: 1 | D158: 887011 | E158: 3.075
A159: 88 | B159: 70 | C159: 0 | D159: 887010 | E159: 2.931
A160: 88 | B160: 70 | C160: -1 | D160: 887009 | E160: 2.787
A161: 88 | B161: 70 | C161: -2 | D161: 887008 | E161: 2.643
A162: 88 | B162: 70 | C162: -3 | D162: 887007 | E162: 2.5
A163: 88 | B163: 70 | C163: -4 | D163: 887006 | E163: 2.356
A164: 88 | B164: 70 | C164: -5 | D164: 887005 | E164: 2.212
A165: 88 | B165: 70 | C165: -6 | D165: 887004 | E165: 2.068
A166: 88 | B166: 70 | C166: -7 | D166: 887003 | E166: 1.924
A167: 88 | B167: 70 | C167: -8 | D167: 887002 | E167: 1.781
A168: 88 | B168: 70 | C168: -9 | D168: 887001 | E168: 1.637
A169: 88 | B169: 70 | C169: -10 | D169: 887000 | E169: 1.466
A170: 85 | B170: 0 | C170: 10 | D170: 850020 | E170: 6.85
A171: 85 | B171: 0 | C171: 9 | D171: 850019 | E171: 4.629
A172: 85 | B172: 0 | C172: 8 | D172: 850018 | E172: 4.471
A173: 85 | B173: 0 | C173: 7 | D173: 850017 | E173: 4.314
A174: 85 | B174: 0 | C174: 6 | D174: 850016 | E174: 4.156
A175: 85 | B175: 0 | C175: 5 | D175: 850015 | E175: 3.999
A176: 85 | B176: 0 | C176: 4 | D176: 850014 | E176: 3.841
A177: 85 | B177: 0 | C177: 3 | D177: 850013 | E177: 3.684
A178: 85 | B178: 0 | C178: 2 | D178: 850012 | E178: 3.526
A179: 85 | B179: 0 | C179: 1 | D179: 850011 | E179: 3.369
A180: 85 | B180: 0 | C180: 0 | D180: 850010 | E180: 3.211
A181: 85 | B181: 0 | C181: -1 | D181: 850009 | E181: 3.053
A182: 85 | B182: 0 | C182: -2 | D182: 850008 | E182: 2.896
A183: 85 | B183: 0 | C183: -3 | D183: 850007 | E183: 2.738
A184: 85 | B184: 0 | C184: -4 | D184: 850006 | E184: 2.581
A185: 85 | B185: 0 | C185: -5 | D185: 850005 | E185: 2.423
A186: 85 | B186: 0 | C186: -6 | D186: 850004 | E186: 2.266
A187: 85 | B187: 0 | C187: -7 | D187: 850003 | E187: 2.108
A188: 85 | B188: 0 | C188: -8 | D188: 850002 | E188: 1.951
A189: 85 | B189: 0 | C189: -9 | D189: 850001 | E189: 1.793
A190: 85 | B190: 0 | C190: -10 | D190: 850000 | E190: 1.606
A191: 85 | B191: 50 | C191: 10 | D191: 855020 | E191: 6.393
A192: 85 | B192: 50 | C192: 9 | D192: 855019 | E192: 4.32
A193: 85 | B193: 50 | C193: 8 | D193: 855018 | E193: 4.173
A194: 85 | B194: 50 | C194: 7 | D194: =TEXT(A194,"00")&TEXT(B194,"00")&TEXT(C194+10,"00") -> 855017 | E194: 4.026
A195: 85 | B195: 50 | C195: 6 | D195: 855016 | E195: 3.879
A196: 85 | B196: 50 | C196: 5 | D196: 855015 | E196: 3.732
A197: 85 | B197: 50 | C197: 4 | D197: 855014 | E197: 3.585
A198: 85 | B198: 50 | C198: 3 | D198: 855013 | E198: 3.438
A199: 85 | B199: 50 | C199: 2 | D199: 855012 | E199: 3.291
A200: 85 | B200: 50 | C200: 1 | D200: 855011 | E200: 3.144
... 620 more rows

Sheet ツール構成
A1: モジュール構成
A2: V6時点
B5: Page_1（開始）
B6: 新規 | H6: 読み込み | N6: 保険料率更新 | T6: 終了
B7: Btn1_Start_Click | H7: Btn1_ReStart_Click | N7: Btn1_Koushin_Click | T7: Btn1_Quit_Click
I8: →Page_14（再開読込） | S8: ※画面移動なし | Y8: プログラム終了
B13: Page_2（利用にあたって）
B14: 次へ>> | T14: 最初へ
B15: Btn2_Next_Click | T15: Btn2_Top_Click
U16: →Page_1（開始）
Y17: ※初期化 実行
B21: Page_3（入力1（転記））
B22: 次へ>> | N22: 保存 | T22: 最初へ
B23: Btn3_Next_Click | N23: Btn3_Save_Click | T23: Btn3_Top_Click
O24: →Page_15（保存） | U24: →Page_1（開始）
Y25: ※初期化 実行
B29: Page_4（入力２（転記））
B30: 次へ>> | H30: << 戻る | N30: 保存 | T30: 最初へ
B31: Btn4_Next_Click | H31: Btn4_Back_Click | N31: Btn4_Save_Click | T31: Btn4_Top_Click
C32: →Page_6（入力４） | I32: →手前の画面へ | O32: →Page_15（保存） | U32: →Page_1（開始）
Y33: ※初期化 実行
B37: Page_5（入力３） ※過去Verにて使用
B38: 次へ>> | H38: << 戻る | N38: 保存 | T38: 最初へ
B39: Btn5_Next_Click | H39: Btn5_Back_Click | N39: Btn5_Save_Click | T39: Btn5_Top_Click
O40: →Page_15（保存） | U40: →Page_1（開始）
Y41: ※初期化 実行
B45: Page_6（入力４）
B46: 次へ>> | H46: << 戻る | N46: 保存 | T46: 最初へ
B47: Btn6_Next_Click | H47: Btn6_Back_Click | N47: Btn6_Save_Click | T47: Btn6_Top_Click
I48: →Page_4（入力２（転記）） | O48: →Page_15（保存） | U48: →Page_1（開始）
Y49: ※初期化 実行
B53: Page_7（入力５）
B54: 次へ>> | H54: << 戻る | N54: 保存 | T54: 最初へ
B55: Btn7_Next_Click | H55: Btn7_Back_Click | N55: Btn7_Save_Click | T55: Btn7_Top_Click
I56: →手前の画面へ | O56: →Page_15（保存） | U56: →Page_1（開始）
Y57: ※初期化 実行
B61: Page_8（入力６）
B62: 次へ>> | H62: << 戻る | N62: 保存 | T62: 最初へ
B63: Btn8_Next_Click | H63: Btn8_Back_Click | N63: Btn8_Save_Click | T63: Btn8_Top_Click
I64: →手前の画面へ | O64: →Page_15（保存） | U64: →Page_1（開始）
Y65: ※初期化 実行
B69: Page_9（結果１）
B70: 次へ>> | H70: << 戻る | N70: 保存 | T70: 最初へ
B71: Btn9_Next_Click | H71: Btn9_Back_Click | N71: Btn9_Save_Click | T71: Btn9_Top_Click
I72: →手前の画面へ | O72: →Page_15（保存） | U72: →Page_1（開始）
Y73: ※初期化 実行
B77: Page_10（結果２）
B78: 次へ>> | H78: << 戻る | N78: 保存 | T78: 最初へ
B79: Btn10_Next_Click | H79: Btn10_Back_Click | N79: Btn10_Save_Click | T79: Btn10_Top_Click
I80: →手前の画面へ | O80: →Page_15（保存） | U80: →Page_1（開始）
Y81: ※初期化 実行
H83: EXCEL出力 | N83: 翌年度以降-表示 | T83: 計算根拠-表示
H84: Btn10_Excel_Click | N84: Btn10_HokenryoShisan_Click | T84: Btn10_KeisanKonkyo_Click
M85: ※画面移動なし | O85: →Page_12（前提条件） | U85: →Page_16（計算根拠）
B90: Page_11（結果３）
B91: << 戻る | H91: EXCEL出力 | N91: 保存 | T91: 最初へ
B92: Btn11_Back_Click | H92: Btn11_Excel_Click | N92: Btn11_Save_Click | T92: Btn11_Top_Click
C93: →手前の画面へ | M93: ※画面移動なし | O93: →Page_15（保存） | U93: →Page_1（開始）
Y94: ※初期化 実行
B97: Page_12（前提条件）
B98: 次へ>> | T98: << 戻る
B99: Btn12_Next_Click | T99: Btn12_Back_Click
U100: →Page_10（結果２）
B105: Page_13（保険請求後の保険料）
T106: << 戻る
T107: Btn12_Back_Click
U108: →Page_10（結果２）
B113: Page_14（再開読込）
B114: フォルダ指定 | H114: 読込 | T114: << 戻る
B115: Btn14_FolderTarget_Click | H115: Btn14_LoadTarget_Click | T115: Btn14_Back_Click
G116: ※画面移動なし | I116: →Page_3（入力1（転記）） | U116: →Page_1（開始）
B121: Page_15（保存）
B122: 保存 | T122: << 戻る
B123: Btn15_DataSaveButton_Click | T123: Btn14_Back_Click
G124: ※画面移動なし | U124: →（保存ボタン押下したページ）
B129: Page_16（計算根拠）
T130: 閉じる
T131: Btn16_Close_Click
U132: →Page_10（結果２）

Sheet 結果_Form
A1: 「農業経営収入保険 保険金等見積額算出ツール」 出力結果
AE2: =TODAY() -> 2025-11-12
A4: 明細 | B4: 種類・品目等 | G4: 期首棚卸高 | J4: 販売金額 | M4: 事業消費金額 | P4: 期末棚卸高 | W4: 農業収入金額 | AB4: 見込農業収入金額 | AF4: 農業収入増減額
G5: ① | J5: ② | M5: ③ | P5: ④ | W5: ⑤=②＋③＋④－① | AB5: ⑥ | AF5: ⑦=⑤－⑥
A7: ０１ | B7: =IF(ShuruiHinmoku1<>"",ShuruiHinmoku1,"") ->  | G7: =KishuTanaoroshi1 -> 0 | J7: =ShunyuKingakuShinkoku1 -> 0 | M7: =JigyoShohiKingaku1 -> 0 | P7: =KimatsuTanaoroshiKingaku1 -> 0 | W7: =NogyoShunyuKingaku1 -> 0 | AB7: =MikomiNogyoShunyu1 -> 0 | AF7: =NogyoShunyuZogengaku1 -> 0
I9: 円 | L9: 円 | O9: 円 | V9: 円 | AA9: 円 | AE9: 円 | AI9: 円
A10: =IF(MikomiNogyoTaishoHinmoku2>=2,"０２","") ->  | B10: =IF(ShuruiHinmoku2<>"",ShuruiHinmoku2,"") ->  | G10: =IF(MikomiNogyoTaishoHinmoku2>=2,KishuTanaoroshi2,"") ->  | J10: =IF(MikomiNogyoTaishoHinmoku2>=2,ShunyuKingakuShinkoku2,"") ->  | M10: =IF(MikomiNogyoTaishoHinmoku2>=2,JigyoShohiKingaku2,"") ->  | P10: =IF(MikomiNogyoTaishoHinmoku2>=2,KimatsuTanaoroshiKingaku2,"") ->  | W10: =IF(MikomiNogyoTaishoHinmoku2>=2,NogyoShunyuKingaku2,"") ->  | AB10: =IF(MikomiNogyoTaishoHinmoku2>=2,MikomiNogyoShunyu2,"") ->  | AF10: =IF(MikomiNogyoTaishoHinmoku2>=2,NogyoShunyuZogengaku2,"") -> 
I12: =IF(MikomiNogyoTaishoHinmoku2>=2,"円","") ->  | L12: =IF(MikomiNogyoTaishoHinmoku2>=2,"円","") ->  | O12: =IF(MikomiNogyoTaishoHinmoku2>=2,"円","") ->  | V12: =IF(MikomiNogyoTaishoHinmoku2>=2,"円","") ->  | AA12: =IF(MikomiNogyoTaishoHinmoku2>=2,"円","") ->  | AE12: =IF(MikomiNogyoTaishoHinmoku2>=2,"円","") ->  | AI12: =IF(MikomiNogyoTaishoHinmoku2>=2,"円","") -> 
A13: =IF(MikomiNogyoTaishoHinmoku2>=3,"０３","") ->  | B13: =IF(ShuruiHinmoku3<>"",ShuruiHinmoku3,"") ->  | G13: =IF(MikomiNogyoTaishoHinmoku2>=3,KishuTanaoroshi3,"") ->  | J13: =IF(MikomiNogyoTaishoHinmoku2>=3,ShunyuKingakuShinkoku3,"") ->  | M13: =IF(MikomiNogyoTaishoHinmoku2>=3,JigyoShohiKingaku3,"") ->  | P13: =IF(MikomiNogyoTaishoHinmoku2>=3,KimatsuTanaoroshiKingaku3,"") ->  | W13: =IF(MikomiNogyoTaishoHinmoku2>=3,NogyoShunyuKingaku3,"") ->  | AB13: =IF(MikomiNogyoTaishoHinmoku2>=3,MikomiNogyoShunyu3,"") ->  | AF13: =IF(MikomiNogyoTaishoHinmoku2>=3,NogyoShunyuZogengaku3,"") -> 
I15: =IF(MikomiNogyoTaishoHinmoku2>=3,"円","") ->  | L15: =IF(MikomiNogyoTaishoHinmoku2>=3,"円","") ->  | O15: =IF(MikomiNogyoTaishoHinmoku2>=3,"円","") ->  | V15: =IF(MikomiNogyoTaishoHinmoku2>=3,"円","") ->  | AA15: =IF(MikomiNogyoTaishoHinmoku2>=3,"円","") ->  | AE15: =IF(MikomiNogyoTaishoHinmoku2>=3,"円","") ->  | AI15: =IF(MikomiNogyoTaishoHinmoku2>=3,"円","") -> 
A16: =IF(MikomiNogyoTaishoHinmoku2>=4,"０４","") ->  | B16: =IF(ShuruiHinmoku4<>"",ShuruiHinmoku4,"") ->  | G16: =IF(MikomiNogyoTaishoHinmoku2>=4,KishuTanaoroshi4,"") ->  | J16: =IF(MikomiNogyoTaishoHinmoku2>=4,ShunyuKingakuShinkoku4,"") ->  | M16: =IF(MikomiNogyoTaishoHinmoku2>=4,JigyoShohiKingaku4,"") ->  | P16: =IF(MikomiNogyoTaishoHinmoku2>=4,KimatsuTanaoroshiKingaku4,"") ->  | W16: =IF(MikomiNogyoTaishoHinmoku2>=4,NogyoShunyuKingaku4,"") ->  | AB16: =IF(MikomiNogyoTaishoHinmoku2>=4,MikomiNogyoShunyu4,"") ->  | AF16: =IF(MikomiNogyoTaishoHinmoku2>=4,NogyoShunyuZogengaku4,"") -> 
I18: =IF(MikomiNogyoTaishoHinmoku2>=4,"円","") ->  | L18: =IF(MikomiNogyoTaishoHinmoku2>=4,"円","") ->  | O18: =IF(MikomiNogyoTaishoHinmoku2>=4,"円","") ->  | V18: =IF(MikomiNogyoTaishoHinmoku2>=4,"円","") ->  | AA18: =IF(MikomiNogyoTaishoHinmoku2>=4,"円","") ->  | AE18: =IF(MikomiNogyoTaishoHinmoku2>=4,"円","") ->  | AI18: =IF(MikomiNogyoTaishoHinmoku2>=4,"円","") -> 
A19: =IF(MikomiNogyoTaishoHinmoku2>=5,"０５","") ->  | B19: =IF(ShuruiHinmoku5<>"",ShuruiHinmoku5,"") ->  | G19: =IF(MikomiNogyoTaishoHinmoku2>=5,KishuTanaoroshi5,"") ->  | J19: =IF(MikomiNogyoTaishoHinmoku2>=5,ShunyuKingakuShinkoku5,"") ->  | M19: =IF(MikomiNogyoTaishoHinmoku2>=5,JigyoShohiKingaku5,"") ->  | P19: =IF(MikomiNogyoTaishoHinmoku2>=5,KimatsuTanaoroshiKingaku5,"") ->  | W19: =IF(MikomiNogyoTaishoHinmoku2>=5,NogyoShunyuKingaku5,"") ->  | AB19: =IF(MikomiNogyoTaishoHinmoku2>=5,MikomiNogyoShunyu5,"") ->  | AF19: =IF(MikomiNogyoTaishoHinmoku2>=5,NogyoShunyuZogengaku5,"") -> 
I21: =IF(MikomiNogyoTaishoHinmoku2>=5,"円","") ->  | L21: =IF(MikomiNogyoTaishoHinmoku2>=5,"円","") ->  | O21: =IF(MikomiNogyoTaishoHinmoku2>=5,"円","") ->  | V21: =IF(MikomiNogyoTaishoHinmoku2>=5,"円","") ->  | AA21: =IF(MikomiNogyoTaishoHinmoku2>=5,"円","") ->  | AE21: =IF(MikomiNogyoTaishoHinmoku2>=5,"円","") ->  | AI21: =IF(MikomiNogyoTaishoHinmoku2>=5,"円","") -> 
A22: =IF(MikomiNogyoTaishoHinmoku2>=6,"０６","") ->  | B22: =IF(ShuruiHinmoku6<>"",ShuruiHinmoku6,"") ->  | G22: =IF(MikomiNogyoTaishoHinmoku2>=6,KishuTanaoroshi6,"") ->  | J22: =IF(MikomiNogyoTaishoHinmoku2>=6,ShunyuKingakuShinkoku6,"") ->  | M22: =IF(MikomiNogyoTaishoHinmoku2>=6,JigyoShohiKingaku6,"") ->  | P22: =IF(MikomiNogyoTaishoHinmoku2>=6,KimatsuTanaoroshiKingaku6,"") ->  | W22: =IF(MikomiNogyoTaishoHinmoku2>=6,NogyoShunyuKingaku6,"") ->  | AB22: =IF(MikomiNogyoTaishoHinmoku2>=6,MikomiNogyoShunyu6,"") ->  | AF22: =IF(MikomiNogyoTaishoHinmoku2>=6,NogyoShunyuZogengaku6,"") -> 
I24: =IF(MikomiNogyoTaishoHinmoku2>=6,"円","") ->  | L24: =IF(MikomiNogyoTaishoHinmoku2>=6,"円","") ->  | O24: =IF(MikomiNogyoTaishoHinmoku2>=6,"円","") ->  | V24: =IF(MikomiNogyoTaishoHinmoku2>=6,"円","") ->  | AA24: =IF(MikomiNogyoTaishoHinmoku2>=6,"円","") ->  | AE24: =IF(MikomiNogyoTaishoHinmoku2>=6,"円","") ->  | AI24: =IF(MikomiNogyoTaishoHinmoku2>=6,"円","") -> 
A25: =IF(MikomiNogyoTaishoHinmoku2>=7,"０７","") ->  | B25: =IF(ShuruiHinmoku7<>"",ShuruiHinmoku7,"") ->  | G25: =IF(MikomiNogyoTaishoHinmoku2>=7,KishuTanaoroshi7,"") ->  | J25: =IF(MikomiNogyoTaishoHinmoku2>=7,ShunyuKingakuShinkoku7,"") ->  | M25: =IF(MikomiNogyoTaishoHinmoku2>=7,JigyoShohiKingaku7,"") ->  | P25: =IF(MikomiNogyoTaishoHinmoku2>=7,KimatsuTanaoroshiKingaku7,"") ->  | W25: =IF(MikomiNogyoTaishoHinmoku2>=7,NogyoShunyuKingaku7,"") ->  | AB25: =IF(MikomiNogyoTaishoHinmoku2>=7,MikomiNogyoShunyu7,"") ->  | AF25: =IF(MikomiNogyoTaishoHinmoku2>=7,NogyoShunyuZogengaku7,"") -> 
I27: =IF(MikomiNogyoTaishoHinmoku2>=7,"円","") ->  | L27: =IF(MikomiNogyoTaishoHinmoku2>=7,"円","") ->  | O27: =IF(MikomiNogyoTaishoHinmoku2>=7,"円","") ->  | V27: =IF(MikomiNogyoTaishoHinmoku2>=7,"円","") ->  | AA27: =IF(MikomiNogyoTaishoHinmoku2>=7,"円","") ->  | AE27: =IF(MikomiNogyoTaishoHinmoku2>=7,"円","") ->  | AI27: =IF(MikomiNogyoTaishoHinmoku2>=7,"円","") -> 
A28: =IF(MikomiNogyoTaishoHinmoku2>=8,"０８","") ->  | B28: =IF(ShuruiHinmoku8<>"",ShuruiHinmoku8,"") ->  | G28: =IF(MikomiNogyoTaishoHinmoku2>=8,KishuTanaoroshi8,"") ->  | J28: =IF(MikomiNogyoTaishoHinmoku2>=8,ShunyuKingakuShinkoku8,"") ->  | M28: =IF(MikomiNogyoTaishoHinmoku2>=8,JigyoShohiKingaku8,"") ->  | P28: =IF(MikomiNogyoTaishoHinmoku2>=8,KimatsuTanaoroshiKingaku8,"") ->  | W28: =IF(MikomiNogyoTaishoHinmoku2>=8,NogyoShunyuKingaku8,"") ->  | AB28: =IF(MikomiNogyoTaishoHinmoku2>=8,MikomiNogyoShunyu8,"") ->  | AF28: =IF(MikomiNogyoTaishoHinmoku2>=8,NogyoShunyuZogengaku8,"") -> 
I30: =IF(MikomiNogyoTaishoHinmoku2>=8,"円","") ->  | L30: =IF(MikomiNogyoTaishoHinmoku2>=8,"円","") ->  | O30: =IF(MikomiNogyoTaishoHinmoku2>=8,"円","") ->  | V30: =IF(MikomiNogyoTaishoHinmoku2>=8,"円","") ->  | AA30: =IF(MikomiNogyoTaishoHinmoku2>=8,"円","") ->  | AE30: =IF(MikomiNogyoTaishoHinmoku2>=8,"円","") ->  | AI30: =IF(MikomiNogyoTaishoHinmoku2>=8,"円","") -> 
A31: =IF(MikomiNogyoTaishoHinmoku2>=9,"０９","") ->  | B31: =IF(ShuruiHinmoku9<>"",ShuruiHinmoku9,"") ->  | G31: =IF(MikomiNogyoTaishoHinmoku2>=9,KishuTanaoroshi9,"") ->  | J31: =IF(MikomiNogyoTaishoHinmoku2>=9,ShunyuKingakuShinkoku9,"") ->  | M31: =IF(MikomiNogyoTaishoHinmoku2>=9,JigyoShohiKingaku9,"") ->  | P31: =IF(MikomiNogyoTaishoHinmoku2>=9,KimatsuTanaoroshiKingaku9,"") ->  | W31: =IF(MikomiNogyoTaishoHinmoku2>=9,NogyoShunyuKingaku9,"") ->  | AB31: =IF(MikomiNogyoTaishoHinmoku2>=9,MikomiNogyoShunyu9,"") ->  | AF31: =IF(MikomiNogyoTaishoHinmoku2>=9,NogyoShunyuZogengaku9,"") -> 
I33: =IF(MikomiNogyoTaishoHinmoku2>=9,"円","") ->  | L33: =IF(MikomiNogyoTaishoHinmoku2>=9,"円","") ->  | O33: =IF(MikomiNogyoTaishoHinmoku2>=9,"円","") ->  | V33: =IF(MikomiNogyoTaishoHinmoku2>=9,"円","") ->  | AA33: =IF(MikomiNogyoTaishoHinmoku2>=9,"円","") ->  | AE33: =IF(MikomiNogyoTaishoHinmoku2>=9,"円","") ->  | AI33: =IF(MikomiNogyoTaishoHinmoku2>=9,"円","") -> 
A34: =IF(MikomiNogyoTaishoHinmoku2>=10,"１０","") ->  | B34: =IF(ShuruiHinmoku10<>"",ShuruiHinmoku10,"") ->  | G34: =IF(MikomiNogyoTaishoHinmoku2>=10,KishuTanaoroshi10,"") ->  | J34: =IF(MikomiNogyoTaishoHinmoku2>=10,ShunyuKingakuShinkoku10,"") ->  | M34: =IF(MikomiNogyoTaishoHinmoku2>=10,JigyoShohiKingaku10,"") ->  | P34: =IF(MikomiNogyoTaishoHinmoku2>=10,KimatsuTanaoroshiKingaku10,"") ->  | W34: =IF(MikomiNogyoTaishoHinmoku2>=10,NogyoShunyuKingaku10,"") ->  | AB34: =IF(MikomiNogyoTaishoHinmoku2>=10,MikomiNogyoShunyu10,"") ->  | AF34: =IF(MikomiNogyoTaishoHinmoku2>=10,NogyoShunyuZogengaku10,"") -> 
I36: =IF(MikomiNogyoTaishoHinmoku2>=10,"円","") ->  | L36: =IF(MikomiNogyoTaishoHinmoku2>=10,"円","") ->  | O36: =IF(MikomiNogyoTaishoHinmoku2>=10,"円","") ->  | V36: =IF(MikomiNogyoTaishoHinmoku2>=10,"円","") ->  | AA36: =IF(MikomiNogyoTaishoHinmoku2>=10,"円","") ->  | AE36: =IF(MikomiNogyoTaishoHinmoku2>=10,"円","") ->  | AI36: =IF(MikomiNogyoTaishoHinmoku2>=10,"円","") -> 
A37: 合計 | G37: =KishuTanaoroshi11 -> 0 | J37: =ShunyuKingakuShinkoku11 -> 0 | M37: =JigyoShohiKingaku11 -> 0 | P37: =KimatsuTanaoroshiKingaku11 -> 0 | W37: =NogyoShunyuKingaku11 -> 0 | AB37: =MikomiNogyoShunyu11 -> 0 | AF37: =NogyoShunyuZogengaku11 -> 0
I39: 円 | L39: 円 | O39: 円 | V39: 円 | AA39: 円 | AE39: 円 | AI39: 円
B43: 受取可能な保険金及び特約補てん金（以下、保険金等）については、以下のとおりです。
D45: 保険金 | J45: ① | K45: =Hokenkin -> 0
D46: 特約補てん金 | J46: ② | K46: =TokuyakuHotenkin -> 0
E47: うち、被保険者負担分 | K47: =K46-INT(K46/4*3) -> 0
E48: うち、国庫負担分 | K48: =INT(K46/4*3) -> 0
B50: 今回の保険金等の請求予定は以下のとおりです。
D52: 保険金 | K52: =IF(Hokenkin>0,IF(SeikyuSuruHokenkin=TRUE,"請求する","請求しない"),"－－－") -> －－－
D53: 特約補てん金 | K53: =IF(HotenHoshiki="保険方式のみ","ーーー",IF(TokuyakuHotenkin>0,IF(SeikyuSuruTokuyakuHotenkin=TRUE,"請求する","請求しない"),"－－－")) -> －－－
B55: ="上記の請求予定に基づく"&IF(SUM(K57:O58)>=K61,"振込額","請求額")&"は以下のとおりです。" -> 上記の請求予定に基づく振込額は以下のとおりです。
D57: 保険金 | J57: ① | K57: =IF(K52="請求する",K45,0) -> 0 | U57: 「収入保険補てん収入」として、
D58: 特約補てん金 | J58: ② | K58: =IF(K53="請求する",K46,0) -> 0 | U58: 保険期間の雑収入に計上します。
E59: うち、被保険者負担分 | K59: =IF(K53="請求する",K47,0) -> 0 | U59: また、貸借対照表の資産の部の
E60: うち、国庫負担分 | K60: =IF(K53="請求する",K48,0) -> 0 | U60: 未収金に計上します。
D61: つなぎ資金貸付残高 | J61: ③ | K61: =TsunagiZandaka -> 0 | U61: =K57+K60 -> 0
D62: =IF(SUM(K57:O58)>=K61,"振込額","請求額") -> 振込額 | H62: ①＋②－③ | K62: =ABS(K57+K58-K61) -> 0
A67: 保険金等の計算根拠
C69: 補償内容
D72: 基準収入金額 | H72: =KijunShunyu -> 0 | N72: 保険方式 | Q72: 補償割合 | W72: =Hoken_HoshoGendo -> 80 | Z72: 保険限度額 | AD72: =HokenGendoGaku -> 0
Q74: 支払率 | W74: =Hoken_Shiharairitsu -> 90 | Z74: 保険金額 | AD74: =HokenKingaku -> 0
Q76: =IF(StartY<>2019,"補償の下限","") -> 補償の下限 | W76: =IF(StartY<>2019,IF(Hoken_HoshoKagen=0,"設定なし",Hoken_HoshoKagen),"") -> 設定なし | Z76: =IF(StartY<>2019,IF(Hoken_HoshoKagen<>0,"保険金の支払限度の額",""),"") ->  | AD76: =IF(StartY<>2019,IF(Hoken_HoshoKagen<>0,HoshoKagen,""),"") -> 
N78: =IF(HotenHoshiki="保険方式＋積立方式","積立方式","") ->  | Q78: =IF(HotenHoshiki="保険方式＋積立方式","補償幅","") ->  | W78: =IF(HotenHoshiki="保険方式＋積立方式",Tsumitate_HoshoHaba,"") ->  | Z78: =IF(HotenHoshiki="保険方式＋積立方式","基準補てん金額","") ->  | AD78: =IF(HotenHoshiki="保険方式＋積立方式",KijunHotenKingaku,"") -> 
Q80: =IF(HotenHoshiki="保険方式＋積立方式","支払率","") ->  | W80: =IF(HotenHoshiki="保険方式＋積立方式",Tsumitate_Shiharairitsu,"") ->  | Z80: =IF(HotenHoshiki="保険方式＋積立方式","補てん対象金額","") ->  | AD80: =IF(HotenHoshiki="保険方式＋積立方式",HotenTaishoKingaku,"") -> 
C83: 保険金の計算根拠 | T83: =IF(HotenHoshiki="保険方式＋積立方式","特約補てん金の計算根拠","") -> 
C86: 保険限度額 | K86: =AD72 -> 0 | T86: =IF(HotenHoshiki="保険方式＋積立方式"," 保険限度額＋基準補てん金額","") ->  | AD86: =IF(HotenHoshiki="保険方式＋積立方式",HokenGendoGaku+KijunHotenKingaku,"") -> 
C88: － 保険期間の農業収入金額 | K88: =IF(AND(NogyoShunyuKingaku11<HoshoKagen,Hoken_HoshoKagen>0,StartY<>2019),HoshoKagen,NogyoShunyuKingaku11) -> 0 | T88: =IF(HotenHoshiki="保険方式＋積立方式","－ 保険期間の農業収入金額","") ->  | AD88: =IF(HotenHoshiki="保険方式＋積立方式",IF(AND(NogyoShunyuKingaku11<HoshoKagen,Hoken_HoshoKagen>0,StartY<>2019),HoshoKagen,NogyoShunyuKingaku11),"") -> 
J89: =IF(AND(NogyoShunyuKingaku11<HoshoKagen,Hoken_HoshoKagen>0,StartY<>2019),"※補償の下限額を採用","") ->  | AC89: =IF(HotenHoshiki="保険方式＋積立方式",IF(AND(NogyoShunyuKingaku11<HoshoKagen,Hoken_HoshoKagen>0,StartY<>2019),"※補償の下限額を採用",""),"") -> 
K90: =IF(K86>K88,IF((K86-K88)>K86,K86,K86-K88),0) -> 0 | AD90: =IF(AND(AD86>AD88,HotenHoshiki="保険方式＋積立方式"),IF(AD86-AD88>KijunHotenKingaku,KijunHotenKingaku,AD86-AD88),IF(HotenHoshiki="保険方式＋積立方式",0,"")) -> 
J91: =IF(K86<K88,"※0円未満は0円を採用",IF(K86-K88>AD72,"※保険限度額が上限","")) ->  | AC91: =IF(AND(AD86>AD88,HotenHoshiki="保険方式＋積立方式"),IF(AD86-AD88>KijunHotenKingaku,"※基準補てん金額が上限",""),IF(HotenHoshiki="保険方式＋積立方式","※0円未満は0円を採用","")) -> 
C92: × 保険方式の支払率 | K92: =W74 -> 90 | T92: =IF(HotenHoshiki="保険方式＋積立方式","× 積立方式の支払率","") ->  | AD92: =IF(HotenHoshiki="保険方式＋積立方式",Tsumitate_Shiharairitsu,"") -> 
C94: =IF(OR(Baishokin2=TRUE,HotenChosei2=TRUE)," 保険金（減額考慮前）","") ->  | K94: =IF(OR(Baishokin2=TRUE,HotenChosei2=TRUE),HokenkinYoteiGaku,"") ->  | T94: =IF(AND(OR(Baishokin2=TRUE,HotenChosei2=TRUE),HotenHoshiki="保険方式＋積立方式")," 特約補てん金（減額考慮前）","") ->  | AD94: =IF(AND(OR(Baishokin2=TRUE,HotenChosei2=TRUE),HotenHoshiki="保険方式＋積立方式"),TokuyakuHotenkinYoteiGaku,"") -> 
F95: =IF(AND(OR(Baishokin2=TRUE,HotenChosei2=TRUE),Hoken_HoshoKagen<>0,HokenkinYoteiGaku=HoshoKagen),"※補償の下限による「保険金の支払限度の額」が上限","") -> 
C96: =IF(OR(Baishokin2=TRUE,HotenChosei2=TRUE),"－ 減額（賠償金等を考慮）","") ->  | K96: =IF(OR(Baishokin2=TRUE,HotenChosei2=TRUE),IF(HokenkinYoteiGaku-Hokenkin>0,HokenkinYoteiGaku-Hokenkin,0),"") ->  | T96: =IF(AND(OR(Baishokin2=TRUE,HotenChosei2=TRUE),HotenHoshiki="保険方式＋積立方式")," － 減額（賠償金等を考慮）","") ->  | AD96: =IF(AND(OR(Baishokin2=TRUE,HotenChosei2=TRUE),HotenHoshiki="保険方式＋積立方式"),IF(TokuyakuHotenkinYoteiGaku-TokuyakuHotenkin>0,TokuyakuHotenkinYoteiGaku-TokuyakuHotenkin,0),"") -> 
C98: 保険金 | K98: =Hokenkin -> 0 | T98: =IF(HotenHoshiki="保険方式＋積立方式"," 特約補てん金","") ->  | AD98: =IF(HotenHoshiki="保険方式＋積立方式",TokuyakuHotenkin,"") -> 
F100: =IF(AND(Baishokin1=TRUE,HotenChosei1=TRUE,Hoken_HoshoKagen<>0,(K90*(K92/100))>HoshoKagen),"※補償の下限による「保険金の支払限度の額」が上限","") -> 
